{"text_format":"1","workbook":"xlsx","n_sheets":22,"sheets":["Cover Page","Contents","Facility Info","Operational Data","Operational Summary","Perf. Form 1","Energy Form 1","Permit Compliance","Improvements","Public Liasion","Residue Quality ","Water","Air (periodic) H1 stack test","Air (periodic) H2 stack test","Air (CEMS)","HCl","SO2","NOx","TOC","Particulates","CO 95% 10 min","NH3"],"not_rendered":{"charts":7,"images":3,"macros":1,"external_links":0,"defined_names":22,"comments":0,"pivot_tables":0},"unopened":[],"bounds":{"document_bytes":16777216,"sheet_cells":100000,"rows_first":2000,"rows_last":500,"rows_between":2000,"halvings":0,"cell_chars":16384,"cell_head_chars":4096},"cells_cut":0,"cells_raw":0,"read":"whole","date_system":"1900"}

{"sheet":"Cover Page","index":0,"n_rows":53,"n_cols":14,"rows_kept":53,"cut":false,"hidden":false,"merged":[[13,13,18,15],[34,1,34,8],[0,3,5,6],[7,1,23,8],[28,1,28,8],[30,1,30,8],[32,1,32,8],[48,2,48,3],[48,6,48,8],[52,2,52,3],[36,1,36,8],[40,2,40,8],[42,2,42,4],[44,2,44,4],[46,2,46,3],[46,6,46,8]]}
[null,null,null,"Add company logo"]
[null,null,null,null,null,null,null,null,null,null,null,null,null,"Version 20.1 "]
[]
[]
[]
[]
[]
[null,"Add photo"]
[]
[]
[]
[]
[null,null,null,null,null,null,null,null,null,null,null,null,null,"Notes:"]
[null,null,null,null,null,null,null,null,null,null,null,null,null,"This template may require adjustments by individual operators to meet specific reporting requirements as defined in the site Permit(s)"]
[]
[]
[]
[]
[]
[]
[]
[]
[]
[]
[]
[]
[]
[]
[null,"Annual Performance Report 2020"]
[]
[null,"Permit EPR/NP3638ZS"]
[]
[null,"Peterborough Energy Recovery Facility"]
[]
[null,"N/A"]
[]
[null,"Viridor Peterborough Ltd"]
[]
[null,"Year:",2020]
[]
[null,"Address:","Fourth Drove, Peterborough, PE1 5UR"]
[]
[null,"Tel: ","01733 465284"]
[]
[null,"Email: ","kgoldacre@viridor.co.uk "]
[]
[null,"Prepared by:","K Goldacre",null,null,"Position:","EHS Manager"]
[]
[null,"Approved by:","R Griffin",null,null,"Position:","Head of Operations (North)"]
[]
[null,"Version:",1]
[]
[null,"Issue Date:","2021-01-25"]

{"sheet":"Contents","index":1,"n_rows":44,"n_cols":11,"rows_kept":44,"cut":false,"hidden":false,"merged":[[4,10,7,14],[8,1,8,6],[3,1,3,6],[4,1,4,6],[5,1,5,6],[6,1,6,6],[7,1,7,6],[20,1,20,6],[9,1,9,6],[10,1,10,6],[11,1,11,6],[12,1,12,6],[13,1,13,6],[14,1,14,6],[15,1,15,6],[16,1,16,6],[17,1,17,6],[18,1,18,6],[19,1,19,6],[35,1,35,6],[21,1,21,6],[22,1,22,6],[23,1,23,6],[26,1,26,6],[27,1,27,6],[28,1,28,6],[29,1,29,6],[30,1,30,6],[31,1,31,6],[34,1,34,6],[43,0,46,9],[36,1,36,6],[37,1,37,6],[38,1,38,6],[39,1,39,6],[40,1,40,6],[41,1,41,6]]}
[{"$f":"+'Cover Page'!$B$29","v":"Annual Performance Report 2020"},null,null,null,{"$f":"+'Cover Page'!$B$33","v":"Peterborough Energy Recovery Facility"}]
[]
["Contents",null,null,null,null,null,null,null,null,null,"Notes:"]
["Section","Subject",null,null,null,null,null,"Page ",null,null,"Section references and Page nos. to be inserted"]
[null,"Facility Information",null,null,null,null,null,3,null,null,"Sections and Subjects may require adjustment by individual operators to meet specific reporting requirements as defined in the sites Permit(s)"]
[null,"Operational Summary",null,null,null,null,null,6]
[null,"Operational Data",null,null,null,null,null,4]
[null,"Performance Form 1",null,null,null,null,null,7]
[null,"Energy Form 1",null,null,null,null,null,8]
[null,"Permit Compliance",null,null,null,null,null,9]
[null,"Improvements",null,null,null,null,null,10]
[null,"Public Liasion",null,null,null,null,null,11]
[null,"Residue Quality - Optional",null,null,null,null,null,12]
[null,"Emissions to Water",null,null,null,null,null,13]
[null,"Emissions to Air (periodically monitored)",null,null,null,null,null,14]
[null,"Emissions to Air (continuously monitored)",null,null,null,null,null,16]
[null,"Hydrogen Chloride emissions",null,null,null,null,null,18]
[null,"Sulphur Dioxide emsissions",null,null,null,null,null,19]
[null,"Oxides of Notrigen emissions",null,null,null,null,null,20]
[null,"Total Organic Carbon emissions",null,null,null,null,null,21]
[null,"Particulate Matter emissions",null,null,null,null,null,22]
[null,"Carbon Monoxide emissions",null,null,null,null,null,23]
[null,"Ammonia emissions",null,null,null,null,null,24]
[]
[]
["Version Control"]
["Section","Information",null,null,null,null,null,"Date"]
[]
[]
[]
[]
[]
[]
["Distribution"]
["Copy","Name, Role",null,null,null,null,null,"No."]
[]
[]
[]
[]
[]
[]
[]
[]
["This report is required under the Industrial Emissions Directive’s Article 55(2) requirements on reporting and public information on waste incineration plants and co-incineration plants, which require the operator to produce an annual report on the functioning and monitoring of the plant and make it available to the public. "]

{"sheet":"Facility Info","index":2,"n_rows":22,"n_cols":11,"rows_kept":22,"cut":false,"hidden":false,"merged":[[4,0,17,8],[21,0,53,8],[4,10,13,13],[21,10,30,13]]}
[{"$f":"+'Cover Page'!$B$29","v":"Annual Performance Report 2020"},null,null,null,{"$f":"+'Cover Page'!$B$33","v":"Peterborough Energy Recovery Facility"}]
[]
["Plant Description and Design",null,null,null,null,null,null,null,null,null,"Notes:"]
[]
["Peterborough Energy from Waste (EfW) facility is located on the eastern side of Peterborough and occupies an area of 4.5 hectares within the Fengate Industrial Estate, approximately 2.5km south-east of the city centre. The ERF enables the city of Peterborough and area to divert about 85,000 tonnes of residual waste from landfill each year.\n\nThe facility is a single line plant which has a capacity for 85,000 tonnes incinerated per year and generates electricity (on average 8.5-8.8MWh) to be used internally and exported to the National Grid. The facility design and layout of the steam turbine allows for potential heat export to local users, a small district heating scheme was commissioned in March 2017 serving Dodson House (next door building owned by Peterborough City Council) although this is currently dormant.",null,null,null,null,null,null,null,null,null,"Include summary of plant design, design capacity, no. of combustion lines, electrical and heat capacity and any other general information that descibes the facility, its location and purpose "]
[]
[]
[]
[]
[]
[]
[]
[]
[]
[]
[]
[]
[]
[]
["Summary of Operational Processes and Procedures"]
[]
["Incoming refuse collection vehicles and bulk transport vehicles enter the site and proceed to the incoming weighbridge. After weighing in, the vehicles continue to the enclosed reception hall where they will discharge their load into the waste storage bunker.\nVehicle loads are inspected randomly in the Tipping Hall to confirm the nature of incoming waste.\nOnce vehicles have deposited their waste they leave the site via a second weighbridge.\nPotential emissions of odour and dust from the tipping hall and refuse bunkers are controlled\nby forced draught fans located above the refuse bunkers. These draw air from the bunker hall\nand reception area into the furnace to feed the combustion process, creating a slight negative\npressure.\nThe waste combustion takes place on a Volund Dynagrate the heat generated being used to create superheated steam which is used to drive the steam turbine and generate electricity. Heat from turbine bleeds can be used for combined heat and power systems and is also used for pre-heating of combustion air and operation of the deaerator to maximise efficiency.\nCondensing of the steam takes place via air cooled condensing system and the condensate cycles back around in a closed system (other than necessary top up).\nEmission control is via injection of ammonia into the furnace for NOx control via SNCR technology. At the end of the boiler and gas path lime and activated carbon are added to remove acidic gases, dioxins, furans and heavy metals before this is all filtered by a bag filter system which removes the lime and carbon added and particulates from the combustion process producing APCr.\nEmissions are measured continuously in stack and by extractive stack measurements as required by the environmental permit.\nResidues from the process, IBA and APCr are both sent to specialist reprocessing sites. IBA has metals removed for recyling and is reprocessed into IBAA (Incinerator Bottom Ash Aggregate). The APCr is sent to OCO Technology (formally Carbon8) who use accelerated cabonation technology to produce a carbon negative aggregate material which encapsulates the absorbed substances from the APCr.\nMaintenance is controlled by a CMMS system and consists of planned preventative maintenance (ppm), derived from both experience of the plant and OEM requirements, and reactive maintenance. An annual shutdown period happens each summer during which maintenance and statutory inspections are carried out.\nThe plant operates a document control system meeting the requirements of the Viridor document management system and ISO 9001, 14001, 45001 and 50001. ",null,null,null,null,null,null,null,null,null,"Include summary of key processes and procedures such as (but not limited to); waste reception, control rooms, grate, bed and bolier, energy & heat  generation, cooling systems, residue management, emission controls, health and safety systems, maintenance"]

{"sheet":"Operational Data","index":3,"n_rows":79,"n_cols":11,"rows_kept":79,"cut":false,"hidden":false,"merged":[[3,1,3,2],[7,1,19,1],[27,1,30,1],[32,1,33,1],[63,0,67,0],[5,10,6,10],[7,10,18,10],[38,1,45,1],[34,2,34,5],[34,6,34,7],[19,10,31,10]]}
[{"$f":"+'Cover Page'!$B$29","v":"Annual Performance Report 2020"},null,null,null,{"$f":"+'Cover Page'!$B$33","v":"Peterborough Energy Recovery Facility"}]
[]
["Operational Data",null,null,null,null,null,null,null,null,null,"Notes:"]
["Plant Size",85000,null,"tonnes pa",28,"MWth",9,"MWe",null,null,"* - RDF to include SRF "]
["No. of combustion lines",1,null,"No. of Turbines:",null,1,null,null,null,null,"** - CHP plants only"]
[null,null,null,null,null,null,null,null,null,null,"2020 updates include;  heat in MWh, water in Litres, NCV in MJ/kg"]
["Waste types received","Unit","Q1","Q2","Q3","Q4","Year Total","%"]
["Household / Local Authority","tonnes",12772.18,13146.84,13700.42,13642.12,{"$f":"SUM(C8:F8)","v":53261.560000000005},{"$f":"IF(G8>0,G8/$G$18,\"-\")","v":0.61952526864404134},null,null,"Availabiity Definition: 'the availability of a line is to be calculated by the number of hours the line reported Continuously Monitored emission levels to the Regulator through the calendar year divided by the total number of hours in that year. \nThe overall plant availability is calculated as the Mean of all lines in the plant. For clarity this includes periods of Other Than Normal Operating Conditions (OTNOC) and abnormal operation.'  \n\nRationale: The primary function of an Energy from Waste facility is the disposal of waste. It follows therefore that the availability of a plant is determined by the period of time a facility spends undertaking this activity."]
["Commercial & Industrial ",null,8679.85,4273.49,7510.22,7587.89,{"$f":"SUM(C9:F9)","v":28051.45},0.32628751574503057]
["Hazardous ",null,0,0,0,null,0,"-"]
["Clinical",null,1165.98,1269.3399999999999,1145.28,1077.96,4658.5599999999995,5.4187215610928111E-2]
["Waste wood (biomass) ",null,null,null,null,null,0,"-"]
["Refuse Derived Fuel * - H'hold/LA",null,null,null,null,null,{"$f":"SUM(C13:F13)","v":0},"-"]
["Refuse Derived Fuel *  - C&I",null,null,null,null,null,0,"-"]
["Other [Please specify]",null,null,null,null,null,0,"-"]
["Other [Please specify]"]
["Other [Please specify]"]
["Total waste received",null,{"$f":"SUM(C8:C17)","v":22618.01},{"$f":"SUM(D8:D17)","v":18689.670000000002},{"$f":"SUM(E8:E17)","v":22355.919999999998},{"$f":"SUM(F8:F17)","v":22307.97},{"$f":"SUM(G8:G17)","v":85971.57},{"$f":"IF(G18>0,G18/$G$18,\"-\")","v":1}]
["Rejected Waste ",null,null,null,null,null,{"$f":"SUM(C19:F19)","v":0},{"$f":"IF(G19>0,G19/$G$18,\"-\")","v":"-"}]
["Unprocessed waste transferred out",null,null,1295,null,null,{"$f":"SUM(C20:F20)","v":1295},{"$f":"IF(G20>0,G20/$G$18,\"-\")","v":1.5063119121821317E-2},null,null," spends undertaking this activity."]
["Total waste combusted",null,20999.1,15320.1,21639.7,21976.9,{"$f":"SUM(C21:F21)","v":79935.799999999988},{"$f":"IF(G21>0,G21/$G$18,\"-\")","v":0.92979341891743961}]
["NOTE: Total combusted line (as per template calculation) is TOTAL AVAILABLE FOR COMBUSTION"]
["Total waste combusted above is actual weights as recorded by the cranes and DCS from feeding the boiler "]
["(annually calibrated and zero checks each day)."]
["NOTE: Clinical line is 180104 Non-hazardous offensive waste"]
[]
["Energy Useage / Export","Unit","Q1","Q2","Q3","Q4","Year Total","KWh/te"]
["Power Generated","MWh",16486.5,9104.15,17165.580000000002,16666.28,{"$f":"SUM(C28:F28)","v":59422.51},{"$f":"IF(G28>0,G28*1000/$G$21,\"-\")","v":743.37793579347442}]
["Power Exported",null,14946.5,7997.67,14923.03,14524.29,{"$f":"SUM(C29:F29)","v":52391.49},{"$f":"IF(G29>0,G29*1000/$G$21,\"-\")","v":655.41959922838089}]
["Power Used on site",null,{"$f":"(C28-C29)+C31","v":1592.075},{"$f":"(D28-D29)+D31","v":1599.8599999999997},2242.5500000000011,null,{"$f":"SUM(C30:F30)","v":5434.4850000000006},{"$f":"IF(G30>0,G30*1000/$G$21,\"-\")","v":67.98562096082108}]
["Power Imported",null,52.075000000000003,493.38,0,114.35,659.80500000000006,8.2541864846539372]
["Parasitic Load","%",{"$f":"IF(C28>0,1-C29/(C28+C31),\"-\")","v":9.6264339581856428E-2},{"$f":"IF(D28>0,1-D29/(D28+D31),\"-\")","v":0.16669497256064836},{"$f":"IF(E28>0,1-E29/(E28+E31),\"-\")","v":0.1306422503638095},{"$f":"IF(F28>0,1-F29/(F28+F31),\"-\")","v":0.13446098269254469},{"$f":"IF(G28>0,1-G29/(G28+G31),\"-\")","v":0.12800480474162823}]
["Thermal Energy Produced **","MWh",null,null,null,null,{"$f":"SUM(C33:F33)","v":0},"-"]
["Thermal Energy Exported **",null,null,null,null,null,0,"-"]
["R1 value",null,0.85,null,null,null,"Operational "]
["Power used on site = (Generated-Exported) + imported"]
[]
["Waste Disposal & Recovery","Unit","Q1","Q2","Q3","Q4","Year Total","% inputs"]
["APC Residues - produced","tonnes",671,494.04,569.84,489.48,{"$f":"SUM(C39:F39)","v":2224.36},{"$f":"IF(G39>0,G39/$G$21,\"-\")","v":2.7826831031903108E-2}]
["IBA - produced",null,4345,3662.32,5037.43,4663,17707.75,{"$f":"IF(G40>0,G40/$G$21,\"-\")","v":0.22152464853044571}]
["Metals recycling",null,0,14.02,6.18,0,{"$f":"SUM(C41:F41)","v":20.2},2.5270279399217875E-4]
["Aqueous liquid 161002",null,6.53,0,0,0,{"$f":"SUM(C42:F42)","v":6.53},8.1690556671729084E-5]
["Waste Oil  13 08 99*",null,0,1.38,0.57999999999999996,0,1.96,2.4519677040825266E-5]
["WEEE  200136",null,0,0,0.12,0,0.12,1.5012047167852204E-6]
["Soil & Concrete (170101 & 170504)",null,0,0,0,34.9,34.9,4.3660037179836823E-4]
["Flourescent tubes  20 01 21*",null,0,0.04,0,0,0.04,5.0040157226174016E-7]
["NOTE: Metal recycling is from site use only - metal from IBA is recycled by the IBA reprocessor."]
["Soil & Concrete from construction of new gatehouse."]
[]
["Raw Material Usage","Unit","Q1","Q2","Q3","Q4","Year Total","kg or Ltr /te"]
["Mains Water","ltrs",12426,12129,15782,15897,{"$f":"SUM(C51:F51)","v":56234},{"$f":"IF(G51>0,G51/$G$21,\"-\")","v":0.70348955036416738}]
["Other Water","ltrs",23,38,45,38,144,{"$f":"IF(G52>0,G52/$G$21,\"-\")","v":1.8014456601422645E-3}]
["Ammonia","kgs",92204.6,32335.1,37114.9,42417.2,204071.8,2.5529462393570843]
["Urea","kgs",0,0,0,0,{"$f":"SUM(C54:F54)","v":0},"-"]
["Activated Carbon","kgs",8813,6402,8891,10336,34442,0.43087077379597133]
["Lime / hydrated lime","kgs",471390,324793,346777,283389,1426349,17.843682054849019]
["Fuel oil","ltrs",50356.82,92743.1,11760.11,74163,229023.03000000003,2.8650871074036921]
["Gas","cf",0,0,0,0,0]
["Other",null,0,0,0,0]
["kgs ammonia calculated from volume using density ammonia solution = 0.911"]
["Fuel oil is amount used for process only = burners."]
[]
["Summary ","Line/Unit","Q1","Q2","Q3","Q4","Year Total",null,null,"Hrs in year "]
["Availability of waste combustion by line, hrs",{"$f":"+B5","v":1},2083.8000000000002,1519.51,2203.67,2140.4,{"$f":"SUM(C64:F64)","v":7947.380000000001},{"$f":"(G64/J64)","v":0.9072351598173517},null,8760]
[null,2,0,0,0,0,null,"x %"]
[null,3,0,0,0,0,null,"x %"]
[null,4,0,0,0,0,null,"x %"]
[null,5,0,0,0,0,null,"x %"]
["Overall Availability, mean avg. of all lines, hrs",null,2150.8000000000002,1620.5,2203.9299999999998,2214.4,{"$f":"SUM(C69:F69)","v":8189.6299999999992},{"$f":"G69/J64","v":0.93488926940639261}]
["Hours of turbine operations, hrs",1,2098.6,1248.3,2205.5,2095.1999999999998,7647.5999999999995,{"$f":"G70/J64","v":0.87301369863013689}]
["Hours of turbine operations, hrs",2,0,0,0,0,0,"x %"]
["Hours of heat / steam export",null,0,0,0,0,0,{"$f":"IF(B72>0,G71/J64,\"n/a\")","v":"n/a"}]
["Net Calorific Value of waste","MJ/kg",10.039999999999999,9.3800000000000008,10.33,9.7899999999999991,{"$f":"AVERAGE(C73:F73)","v":9.8849999999999998},"-"]
["Abnormal Events","qty.",0,1,0,1,2,{"$f":"IF(G74>0,\"yes\",\"no\")","v":"yes"}]
["Abnormal operation","hours",null,0.5,0,3.17,3.67,{"$f":"+(G75)/J64","v":4.1894977168949773E-4}]
["Permit Breaches","qty.",1,1,0,0,2,{"$f":"IF(G76>0,\"yes\",\"no\")","v":"yes"}]
["NOTE: Single line plant as per note availability of each line is hrs that line has to report CEMS data to"]
["the regulator."]
["Overall availability includes hours of OTNOC, start-up, shutdown, maintenance etc."]

{"sheet":"Operational Summary","index":4,"n_rows":31,"n_cols":11,"rows_kept":31,"cut":false,"hidden":false,"merged":[[4,0,26,8],[30,0,51,8],[4,10,13,13],[30,10,39,13]]}
[{"$f":"+'Cover Page'!$B$29","v":"Annual Performance Report 2020"},null,null,null,{"$f":"+'Cover Page'!$B$33","v":"Peterborough Energy Recovery Facility"}]
[]
["Summary of Plant Operations and Maintenance during the reporting year",null,null,null,null,null,null,null,null,null,"Notes:"]
[]
["The plant operated steadily throughout the first quarter of 2020 with 96.5% availabilty with only 107.7hrs not burning waste. In quarter 2 the annual outage was brought forward to May with all required controls in place during the COVID pandemic. The plant was off waste 664hrs including the annual shutdown outage period. \nThe annual shutdown outage commenced one 1st May concluding on 14th May 2020 during which the plant combustion systems and FGT and ancilliary systems underwent checks, and as required repair, and legal compliance inspections under PSSR were carried out. \n\nOne dust probe was replaced in July 2020, a like for like replacement. This underwent successful period of comparison of values to the standby and daily QAL3 checks as discussed with the Agency. The CEMS, including this probe, underwent QAL2 calibration checks in October 2020.\nDuring Q3 the plant ran steadily with only 4.5hrs downtime in the quarter. The CEMS second dust probe was replaced at the very end of the quarter directly before the annual linearity checks and QAL2 as agreed with the Agency.\nQAL2 and the second stack test of the year was completed in October. All species passed the stack test (where ELVs are applicable). The QAL2 factors were applied from 14th January 2021 upon receipt of the results.\n\nNOTE: amount of waste over the weighbridge was 85972 tonnes however 1295.56 was transferred out giving net waste in for incineration of 84676.44 tonnes. This is due to significant increase in local authority waste related to COVID 19 during outage period.\nOnly 79935.86 tonnes was incinerated against the permitted 'quantity for incineration' of 85000 tonnes.",null,null,null,null,null,null,null,null,null,"Include summary of key operational and/or mainteanance activity undertaken in the year, such as any major component upgrades and/or replacements "]
[]
[]
[]
[]
[]
[]
[]
[]
[]
[]
[]
[]
[]
[]
[]
[]
[]
[]
[]
[]
[]
[]
[]
["Summary of Residue Handling for the reporting year"]
[]
["All IBA produced on site (including the metal content) is collected from site by Johnsons Aggregates and taken for reprocessing at their Ilkeston (EPR/MP3430AM/V004) or Bunny (EPR/CB3204UF/V003) sites where they have a 100% recycling policy.\nThey remove and recycle the ferrous and non-ferrous metals and then create IBAA (Incinerator Bottom Ash Aggregate) from the remaining material. Their Aggregates team then utilise this in various construction and highways projects.\n\nAPCr is collected by direct transfer from the on site silo into transport tanker by Grundons (or hauliers on their behalf) and goes to the O.C.O Technology Ltd (formally Carbon8) site at Brandon (EPR/JP3332FK) (unless not possible due to operational issues at OCO) where it is taken through their accelerated carbonation technology. These carbonated wastes are blended with binders and fillers and pellitised to form an aggregate.",null,null,null,null,null,null,null,null,null,"Include in here a summary of residue handling regimes and destinations "]

{"sheet":"Perf. Form 1","index":5,"n_rows":53,"n_cols":10,"rows_kept":53,"cut":false,"hidden":false,"merged":[[9,0,9,9],[10,0,10,1],[10,2,10,3],[10,4,10,5],[10,6,10,7],[10,8,10,9],[2,0,2,4],[2,6,2,8],[3,1,3,4],[5,3,5,4],[5,6,5,7],[8,0,8,1],[8,2,8,3],[8,4,8,5],[8,6,8,7],[8,8,8,9],[11,0,11,1],[11,2,11,3],[11,4,11,5],[11,6,11,7],[11,8,11,9],[12,0,12,1],[12,2,12,3],[12,4,12,5],[12,6,12,7],[12,8,12,9],[15,0,15,1],[15,2,15,3],[15,4,15,5],[15,6,15,7],[15,8,15,9],[16,0,16,9],[13,0,13,1],[13,2,13,3],[13,4,13,5],[13,6,13,7],[13,8,13,9],[14,0,14,3],[14,4,14,5],[14,6,14,7],[14,8,14,9],[17,0,17,1],[17,2,17,3],[17,4,17,5],[17,6,17,7],[17,8,17,9],[18,0,18,1],[18,2,18,3],[18,4,18,5],[18,6,18,7],[18,8,18,9],[19,0,19,1],[19,2,19,3],[19,4,19,5],[19,6,19,7],[19,8,19,9],[20,0,20,1],[20,2,20,3],[20,4,20,5],[20,6,20,7],[20,8,20,9],[21,0,21,1],[21,2,21,3],[21,4,21,5],[21,6,21,7],[21,8,21,9],[22,0,22,3],[22,4,22,5],[22,6,22,7],[22,8,22,9],[31,0,31,3],[31,7,31,8],[32,0,32,3],[32,4,32,5],[32,7,32,8],[33,0,33,3],[33,4,33,5],[33,7,33,8],[23,0,23,3],[23,4,23,5],[23,6,23,7],[23,8,23,9],[25,0,25,9],[26,0,28,9],[36,0,36,3],[36,4,36,5],[36,7,36,8],[37,0,37,3],[37,4,37,5],[37,7,37,8],[34,0,34,3],[34,4,34,5],[34,7,34,8],[35,0,35,3],[35,4,35,5],[35,7,35,8],[46,0,46,1],[48,0,48,9],[49,0,50,9],[38,0,38,9],[39,0,39,9],[42,0,42,1],[42,2,42,9],[44,0,44,1],[45,0,45,1]]}
[{"$f":"+'Cover Page'!C39","v":2020}," Annual Reporting Performance Form 1"]
[]
[{"$f":"+'Cover Page'!B31","v":"Permit EPR/NP3638ZS"},null,null,null,null,"Operator: ",{"$f":"+'Cover Page'!B37:I37","v":0}]
["Facility:",{"$f":"+'Cover Page'!B33:I33","v":"Peterborough Energy Recovery Facility"},null,null,null,"Form:","Performance 1"]
[]
["Reporting  Period from: ",null,null,"2020-01-01",null,"to:","2020-12-31"]
[]
[{"$f":"+A1","v":2020},"Annual Reporting of Waste Disposal and Recovery"]
["Waste Description",null,"Disposal Route(s)",null,"Disposal Tonnes",null,"Recovery Tonnes",null,"% / tonne of waste incinerated"]
["1) Hazardous Wastes"]
["APC Residues",null,"OCO Technology",null,null,null,{"$f":"'Operational Data'!G39","v":2224.36},null,{"$f":"IF((E11+G11)>0,(E11+G11)/'Operational Data'!$G$21, \"-\")","v":2.7826831031903108E-2}]
["IBA",null,"N/A",null,0,null,0,null,{"$f":"IF((E12+G12)>0,(E12+G12)/'Operational Data'!$G$21, \"-\")","v":"-"}]
["Waste Oil",null,"Slicker recycling",null,0,null,1.4,null,{"$f":"IF((E13+G13)>0,(E13+G13)/'Operational Data'!$G$21, \"-\")","v":1.7514055029160904E-5}]
["Flourescent tubes",null,"W.A.S Ltd",null,4.0000000000000001E-3,null,0,null,{"$f":"IF((E14+G14)>0,(E14+G14)/'Operational Data'!$G$21, \"-\")","v":5.0040157226174013E-8}]
["Total Hazardous Waste",null,null,null,{"$f":"SUM(E11:F14)","v":4.0000000000000001E-3},null,{"$f":"SUM(G11:H14)","v":2225.7600000000002},null,{"$f":"IF((E15+G15)>0,(E15+G15)/'Operational Data'!$G$21, \"-\")","v":2.7844395127089496E-2}]
[]
["2) Non-Hazardous Wastes"]
["IBA",null,"Johnsons Aggregates",null,0,null,{"$f":"'Operational Data'!G40","v":17707.75},null,{"$f":"IF((E18+G18)>0,(E18+G18)/'Operational Data'!$G$21, \"-\")","v":0.22152464853044571}]
["Ferrous Metal",null,"Sims metals",null,0,null,{"$f":"'Operational Data'!G41","v":20.2},null,{"$f":"IF((E19+G19)>0,(E19+G19)/'Operational Data'!$G$21, \"-\")","v":2.5270279399217875E-4}]
["Process Water",null,"N/A",null,0,null,0,null,{"$f":"IF((E20+G20)>0,(E20+G20)/'Operational Data'!$G$21, \"-\")","v":"-"}]
["Waste water sludge",null,"Future Industrial",null,6.5,null,0,null,{"$f":"IF((E21+G21)>0,(E21+G21)/'Operational Data'!$G$21, \"-\")","v":8.1315255492532773E-5}]
["WEEE",null,"PCC",null,0.12,null,0,null,{"$f":"IF((E22+G22)>0,(E22+G22)/'Operational Data'!$G$21, \"-\")","v":1.5012047167852204E-6}]
["Total Non-Hazardous Waste",null,null,null,{"$f":"SUM(E18:F22)","v":6.62},null,{"$f":"SUM(G18:H22)","v":17727.95},null,{"$f":"IF((E23+G23)>0,(E23+G23)/'Operational Data'!$G$21, \"-\")","v":0.22186016778464721}]
["TOTAL WASTE",null,null,null,{"$f":"+E23+E15","v":6.6239999999999997},null,{"$f":"+G23+G15","v":19953.71},null,{"$f":"IF((E24+G24)>0,(E24+G24)/'Operational Data'!$G$21, \"-\")","v":0.2497045629117367}]
[]
["Operator’s comments :"]
["All IBA produced on site (including the metal content) is reprocessed by Johnsons Aggregates who recycle the ferrous and non-ferrous metals and create IBAA (Incinerator Bottom Ash Aggregate) from the remaining material. \nAPCr is taken through OCO Technologies accelerated carbonation technology. These carbonated wastes are blended with binders and fillers and pellitised to form an aggregate. Other waste metal e.g. from maintenance is removed by Sims Metals."]
[]
[]
[]
[{"$f":"+A1","v":2020},"Annual Reporting of Water and Other Raw Material Usage"]
["Raw Material",null,null,null,"Usage",null,"Unit","Specific Useage",null,"Unit"]
["Mains Water",null,null,null,{"$f":"+'Operational Data'!G51","v":56234},null,"m3",{"$f":"IF(E33>0,E33/'Operational Data'!$G$21,\"-\")","v":0.70348955036416738},null,"m3/te"]
["Total Water",null,null,null,{"$f":"+'Operational Data'!G52+'Operational Data'!G51","v":56378},null,"m3",{"$f":"IF(E34>0,E34/'Operational Data'!$G$21,\"-\")","v":0.70529099602430956},null,"m3/te"]
["Urea / Ammonia",null,null,null,{"$f":"+'Operational Data'!G53","v":204071.8},null,"kg",{"$f":"IF(E35>0,E35/'Operational Data'!$G$21,\"-\")","v":2.5529462393570843},null,"kg/te"]
["Activated Carbon",null,null,null,{"$f":"+'Operational Data'!G55","v":34442},null,"kg",{"$f":"IF(E36>0,E36/'Operational Data'!$G$21,\"-\")","v":0.43087077379597133},null,"kg/te"]
["Lime / hydrated lime / Sodium Bicarb.",null,null,null,{"$f":"+'Operational Data'!G56","v":1426349},null,"kg",{"$f":"IF(E37>0,E37/'Operational Data'!$G$21,\"-\")","v":17.843682054849019},null,"kg/te"]
[]
["Operator’s comments :"]
[]
[]
[{"$f":"+A31","v":2020},"Annual Reporting of other performance indicators "]
["Parameter",null,"Results by Line"]
[null,null,"A1","A2","A3","A4","A5",null,"Turbine 1","Turbine 2"]
["Operating hours for the year, hours",null,{"$f":"'Operational Data'!G64","v":7947.380000000001},"N/A","N/A","N/A","N/A","N/A",{"$f":"'Operational Data'!G70","v":7647.5999999999995},"N/A"]
["Number of periods of abnormal operation, qty.",null,2,"N/A","N/A","N/A","N/A","N/A","N/A","N/A"]
["Cumulative hours of abnormal operation for this year, hours",null,3.56,"N/A","N/A","N/A","N/A","N/A","N/A","N/A"]
[]
["Operator’s comments :"]
["Operating hrs = hrs for which CEMS data is reportable. Total 8190 including OTNOC."]
[]
[]
["Signed: ",null,null,null,null,null,"Date:","2021-01-20"]

{"sheet":"Energy Form 1","index":6,"n_rows":29,"n_cols":8,"rows_kept":29,"cut":false,"hidden":false,"merged":[[2,6,2,8],[4,1,4,4],[6,3,6,4],[6,6,6,7],[8,0,8,2],[8,3,8,4],[8,6,8,8],[9,0,9,2],[9,3,9,4],[9,6,9,8],[10,0,10,2],[10,3,10,4],[10,6,10,8],[11,0,11,2],[11,3,11,4],[11,6,11,8],[12,0,12,2],[12,3,12,4],[12,6,12,8],[13,0,13,2],[13,3,13,4],[13,6,13,8],[14,0,14,2],[14,3,14,4],[14,6,14,8],[15,0,15,2],[15,3,15,4],[15,6,15,8],[17,0,17,8],[18,0,24,8]]}
[{"$f":"+'Cover Page'!C39","v":2020}," Annual Reporting of Energy Usage/Export"]
[]
[{"$f":"+'Cover Page'!B31","v":"Permit EPR/NP3638ZS"},null,null,null,null,"Operator: ",{"$f":"+'Cover Page'!B37:I37","v":0}]
[]
["Facility:",{"$f":"+'Cover Page'!B33:I33","v":"Peterborough Energy Recovery Facility"},null,null,null,"Form:","Energy 1"]
[]
["Reporting  Period from: ",null,null,{"$f":"+'Perf. Form 1'!D6:E6","v":"2020-01-01"},null,"to:",{"$f":"+'Perf. Form 1'!G6:H6","v":"2020-12-31"}]
[]
["Energy Source",null,null,"Energy Usage",null,"Unit","Specific Useage (KWh/tonne incinerated"]
["Electricity Produced",null,null,{"$f":"+'Operational Data'!G28","v":59422.51},null,"MWh",{"$f":"+'Operational Data'!H28","v":743.37793579347442}]
["Electricity Imported   ",null,null,{"$f":"+'Operational Data'!G31","v":659.80500000000006},null,"MWh",{"$f":"+'Operational Data'!H31","v":8.2541864846539372}]
["Electricity Exported",null,null,{"$f":"+'Operational Data'!G29","v":52391.49},null,"MWh",{"$f":"+'Operational Data'!H29","v":655.41959922838089}]
["Gas Oil",null,null,{"$f":"('Operational Data'!G57*0.85)/1000","v":194.66957550000001},null,"tonnes"]
["Steam/hot water exported",null,null,{"$f":"+'Operational Data'!G34","v":0},null,"GWh",{"$f":"+'Operational Data'!H34","v":"-"}]
[]
[]
[]
["Operator’s comments :"]
["Production of energy and energy usuage broadly in line with previous years.\nMass diesel (gas oil) calculated with density = 0.85 for kg then /1000 for tonnes."]
[]
[]
[]
[]
[]
[]
[]
[]
[]
["Signed: ",null,null,null,null,null,"Date:","2021-01-20"]

{"sheet":"Permit Compliance","index":7,"n_rows":34,"n_cols":12,"rows_kept":34,"cut":false,"hidden":false,"merged":[[21,12,21,20],[8,11,19,14],[33,4,33,8],[9,0,9,1],[9,2,9,4],[9,5,9,8],[10,0,10,1],[10,2,10,4],[10,5,10,8],[11,0,11,1],[11,2,11,4],[11,5,11,8],[12,0,12,1],[12,2,12,4],[12,5,12,8],[13,0,13,1],[13,2,13,4],[7,0,7,1],[7,2,7,8],[8,0,8,1],[8,2,8,4],[8,5,8,8],[13,5,13,8],[17,0,17,8],[20,0,20,10],[21,1,21,3],[21,4,21,6],[21,7,21,9],[14,0,14,1],[14,2,14,4],[14,5,14,8],[15,0,15,1],[16,2,16,4],[16,5,16,8],[15,2,15,4],[15,5,15,8],[16,0,16,1],[31,1,31,3],[31,4,31,6],[31,7,31,9],[32,1,32,3],[32,4,32,6],[32,7,32,9],[30,1,30,3],[30,4,30,6],[30,7,30,9],[25,1,25,3],[25,4,25,6],[25,7,25,9],[26,1,26,3],[26,4,26,6],[26,7,26,9],[28,0,28,10],[29,1,29,3],[29,4,29,6],[29,7,29,9],[22,4,22,6],[23,1,23,3],[23,4,23,6],[23,7,23,9],[24,1,24,3],[24,4,24,6],[24,7,24,9],[22,7,22,9],[22,1,22,3]]}
[{"$f":"+'Cover Page'!$B$29","v":"Annual Performance Report 2020"},null,null,null,{"$f":"+'Cover Page'!$B$33","v":"Peterborough Energy Recovery Facility"}]
[]
["Summary of Permit Compliance"]
[]
["Compliance with permit limits for continuously monitored pollutants"]
[]
["The plant met its emission limits as shown in the table below:"]
["Substance",null,"Percentage time compliant during operation",null,null,null,null,null,null,null,null,"Notes:"]
[null,null,"Half-hourly limit",null,null,"Daily limit",null,null,null,null,null,"Report to 2 decimal places, i.e. xx.xx%\n\nPlease provide a brief summary of each notification or non-compliance in the table (rather than just referring to notifications that were sent to the Regulator).  \n\n"]
["Particulates",null,1,null,null,1]
["Oxides of nitrogen",null,1,null,null,1]
["Sulphur dioxide",null,1,null,null,1]
["Carbon monoxide",null," \n100% 95% of 10-min averages",null,null,1]
["Total organic carbon",null,0.99980000000000002,null,null,1]
["Hydrogen chloride",null,1,null,null,1]
["Hydrogen fluoride",null,"N/A",null,null,"N/A"]
[]
["NOTE: Dust is 100% as dust was within permit ELV for abnormal operations 13th April 2020"]
["3 individual 10 mins over 150mg/Nm3 during year. ZERO breaches of 95% of 10 min average."]
[]
["Summary of any notifications or non-compliances under the permit"]
["Date","Summary of notification or non-compliance [including Line/Reference]",null,null,"Reason ",null,null,"Measures taken to prevent reoccurrence"]
["31st March 2020","TOC - one half hour 55.7mg/Nm3",null,null,"Explosion on grate",null,null,"Ongoing waste inspections"]
["13th April 2020","Abnormal Operations - 30mins. Dust indicated above ELV but standby instrument and process instruments all show this to be incorrect. Investigation by OEM engineer",null,null,"Intermittant fault in instrument calibration check phase",null,null,"New dust probe has been purchased and installed - QAL3 and comparison to other unit succesful showing accurate readings, QAL2 Oct 2020."]
["3rd June 2020","TOC - one half hour 21.9mg/Nm3",null,null,"Explosion on grate",null,null,"Ongoing waste inspections"]
["10th December 2020","Abnormal Operations - 3hrs 10 mins. The screw conveyor which delivers PAC had a component which was failing.\nThe unit has been fully functional and dosing normally but making a distinct noise. \nProactive repair completed\n",null,null,"Proactive repair on item which investigation suggested was develoing a problem and may have caused both safety and environmental issue had it failed.",null,null,"N/A Proactive action to prevent non-compliance"]
[]
[]
["Summary of any complaints received and actions to taken to resolve them."]
["Date","Summary of complaint [including Line/Reference]",null,null,"Reason *",null,null,"Measures taken to prevent reoccurrence"]
[null,"No complaints received"]
[]
[]
[null,null,null,null,"* including whether substantiated by the operator or the EA"]

{"sheet":"Improvements","index":8,"n_rows":39,"n_cols":5,"rows_kept":39,"cut":false,"hidden":false,"merged":[[37,0,37,9],[38,0,47,9],[4,0,4,9],[5,0,13,9],[15,0,15,9],[16,0,24,9],[26,0,26,9],[27,0,35,9]]}
[{"$f":"+'Cover Page'!$B$29","v":"Annual Performance Report 2020"},null,null,null,{"$f":"+'Cover Page'!$B$33","v":"Peterborough Energy Recovery Facility"}]
[]
["Summary of Plant Improvements"]
[]
["Summary of any efficiency improvements that have been completed within the year."]
["Large sodium lights replaced with LED as they come up for replacement reducing parasitic load.\nBoth duty & standby dust probes replaced."]
[]
[]
[]
[]
[]
[]
[]
[]
[]
["Summary of any permit improvement conditions that have been completed within the year and the resulting environmental benefits."]
["None \nAll completed between December 2015 and April 2017 within timeframes required by permit.\nAll accepted by the Agency "]
[]
[]
[]
[]
[]
[]
[]
[]
[]
["Summary of any changes to the plant or operating techniques which required a variation to the permit and a summary of the resulting environmental impact."]
["None"]
[]
[]
[]
[]
[]
[]
[]
[]
[]
["Summary of any other improvements made to the plant or planned to be made and a summary of the resulting environmental benefits."]
["The current stack flowmeter used for mass calculations (note not used for compliance measurements) will be replaced during 2021 to allow installation of separate duty and standby flowmeters rather than a single cross-stack meter.  This requires alteration of mounting ports to meet the standards for installation of such units and so will be planned to completed during the annual outage period within 2021."]

{"sheet":"Public Liasion","index":9,"n_rows":31,"n_cols":5,"rows_kept":31,"cut":false,"hidden":false,"merged":[[18,0,18,1],[18,2,18,9],[5,0,5,1],[5,2,5,9],[6,0,7,1],[6,2,7,9],[8,0,9,1],[8,2,9,9],[10,0,11,1],[10,2,11,9],[12,0,13,1],[12,2,13,9],[17,0,17,9],[14,0,15,1],[14,2,15,9],[19,0,20,1],[19,2,20,9],[21,0,22,1],[21,2,22,9],[23,0,24,1],[23,2,24,9],[25,0,26,1],[25,2,26,9],[27,0,28,1],[27,2,28,9],[30,0,30,9]]}
[{"$f":"+'Cover Page'!$B$29","v":"Annual Performance Report 2020"},null,null,null,{"$f":"+'Cover Page'!$B$33","v":"Peterborough Energy Recovery Facility"}]
[]
["Details of Public & Stakeholder Liasion"]
[]
["Summary of events held during the reporting year."]
["Date",null,"Description"]
["Bi-monthly",null,"Client meetings with Peterborough City Council "]
[]
["Cancelled 2020 March onwards due to ongoing COVID-19 pandemic",null,"Heritage open days - open days for general public.\nSchool and local group visits and site tours"]
[]
["Quarterly",null,"Viridor in Peterborough Meetings for the Viridor in Peterborough community fund - funding local projects based around sustainability, local need, community involvement, value for money and education"]
[]
["As requested",null,"Environment Agency visits and site tours - as requested"]
[]
[null,null,"We will hold community liaison meetings on request after no attendance by local companies or residents since August 2016."]
[]
[]
["List of events planned for next year"]
["Date",null,"Description"]
[]
[]
[]
[]
[]
[]
[]
[]
[]
[]
[]
["If you wish to be involved in the public liasion programme, please contact enquiries@viridor.co.uk "]

{"sheet":"Residue Quality ","index":10,"n_rows":36,"n_cols":6,"rows_kept":36,"cut":false,"hidden":false,"merged":[[16,0,17,1],[16,2,17,6],[18,0,19,1],[18,2,19,6],[12,0,12,6],[13,0,13,1],[13,2,13,6],[5,0,6,6],[7,0,8,6],[9,0,10,6],[14,0,15,1],[14,2,15,6],[20,0,21,1],[20,2,21,6],[22,0,23,1],[22,2,23,6],[31,3,31,4],[27,2,28,2],[28,3,28,4],[28,5,28,6],[27,3,27,6],[26,0,26,6],[35,0,40,6],[32,3,32,4],[34,0,34,6],[27,0,28,1],[29,0,29,1],[30,0,30,1],[31,0,31,1],[32,0,32,1],[29,3,29,4],[30,3,30,4],[29,5,29,6],[30,5,30,6],[31,5,31,6],[32,5,32,6]]}
[{"$f":"+'Cover Page'!$B$29","v":"Annual Performance Report 2020"},null,null,null,{"$f":"+'Cover Page'!$B$33","v":"Peterborough Energy Recovery Facility"}]
[]
["Residue Quality Monitoring Requirements"]
[]
["Summary of monitoring undertaken and compliance"]
["IBA undergoes quarterly sampling as required by permit condition 3.5.1c and table 3.5 including TOC, dioxins & furans. TOC has a limit of 3%."]
[]
["24 samples of IBA are taken each year (including the 4 permit complaince samples) to undergo basic hazard analysis as required by the ESA protocol."]
[]
["APCr is sampled quarterly as per permit condition 3.5.1c and table 3.5"]
[]
[]
["Commentary on any specific events"]
["Date & Event",null,"Description"]
[]
[]
[]
[]
[]
[]
[]
[]
[]
[]
[]
[]
["Residue Quality Monitoring Results"]
["Parameter (unit) ",null,"Limit","Normal Operation "]
[null,null,null,"Bottom ash  ",null,"APC Residues"]
["Loss on Ignition (average %)",null,"<5%","N/A"]
["Total Organic Carbon (average %)",null,"<3%",7.0000000000000001E-3]
["No. of Assessments Undertaken",null,"---","4 Permit compliance samples\n24 ESA hazard assessment - (including 4 above) to end December 2020.",null,4]
["No. of Hazardous Results",null,"---",0]
[]
["Comments :"]
["In 2020  the highest recorded on these samples is 1.0 % and the lowest 0.5 %. Average 0.70 %.\nAll IBA remained non-hazardous as per the ESA protocol within 2020.\nValue above is average of the quarters"]

{"sheet":"Water","index":11,"n_rows":24,"n_cols":10,"rows_kept":24,"cut":false,"hidden":false,"merged":[[23,6,23,8],[5,0,6,9],[7,0,8,9],[9,0,10,9],[12,0,12,9],[13,0,13,1],[13,2,13,9],[21,0,21,9],[22,0,22,2],[22,3,22,5],[14,0,15,1],[14,2,15,9],[16,0,17,1],[16,2,17,9],[18,0,19,1],[18,2,19,9],[23,0,23,2],[23,3,23,5],[24,0,24,2],[24,3,24,5],[25,0,25,2],[25,3,25,5],[29,0,29,2],[29,3,29,5],[26,0,26,2],[26,3,26,5],[27,0,27,2],[27,3,27,5],[28,0,28,2],[28,3,28,5]]}
[{"$f":"+'Cover Page'!$B$29","v":"Annual Performance Report 2020"},null,null,null,{"$f":"+'Cover Page'!$B$33","v":"Peterborough Energy Recovery Facility"}]
[]
["Emissions to Water"]
[]
["Summary of monitoring undertaken and compliance"]
["Discharge of surface water at W1 - free of visible oil and grease"]
[]
[]
[]
[]
[]
[]
["Commentary on any specific events"]
["Date & Event",null,"Description"]
[]
[]
[]
[]
[]
[]
[]
["Emissions to Water / Sewer"]
["Parameter",null,null,"Monitoring Frequency",null,null,"Limit","Target","Max.","Average"]
["W1 - free of oil and grease",null,null,"Monthly",null,null,"No visible oil / grease"]

{"sheet":"Air (periodic) H1 stack test","index":12,"n_rows":41,"n_cols":13,"rows_kept":41,"cut":false,"hidden":false,"merged":[[40,0,41,9],[37,3,37,4],[37,0,37,1],[33,0,33,1],[33,3,33,4],[34,0,34,1],[34,3,34,4],[35,0,35,1],[35,3,35,4],[36,0,36,1],[36,3,36,4],[38,0,38,1],[38,3,38,4],[39,0,39,9],[30,0,30,1],[30,3,30,4],[31,0,31,1],[31,3,31,4],[32,0,32,1],[32,3,32,4],[27,0,27,1],[27,3,27,4],[28,0,28,1],[28,3,28,4],[29,0,29,1],[29,3,29,4],[24,0,24,1],[24,3,24,4],[25,0,25,1],[25,3,25,4],[26,0,26,1],[26,3,26,4],[21,0,21,1],[21,3,21,4],[22,0,22,1],[22,3,22,4],[23,0,23,1],[23,3,23,4],[18,0,18,1],[18,3,18,4],[19,0,19,1],[19,3,19,4],[20,0,20,1],[20,3,20,4],[15,0,15,1],[15,3,15,4],[16,0,16,1],[16,3,16,4],[17,0,17,1],[17,3,17,4],[12,0,12,1],[12,3,12,4],[13,0,13,1],[13,3,13,4],[14,0,14,1],[14,3,14,4],[5,0,6,9],[5,12,8,15],[8,0,8,9],[9,0,10,1],[9,2,10,2],[9,3,10,4],[9,5,9,9],[9,12,11,15],[11,0,11,1],[11,3,11,4]]}
[{"$f":"+'Cover Page'!$B$29","v":"Annual Performance Report 2020"},null,null,null,{"$f":"+'Cover Page'!$B$33","v":"Peterborough Energy Recovery Facility"}]
[]
["Emissions to Air (periodically monitored)"]
[]
["Summary of monitoring undertaken, standards used and compliance",null,null,null,null,null,null,null,null,null,null,null,"Notes:"]
["All analysis below completed by permit specified BS EN method other than nitrous oxide which was completed by allowed alternative method M22.",null,null,null,null,null,null,null,null,null,null,null,"Template may require adjustment for any bespoke monitoring requirements of permit. "]
[]
[]
["Results of emissions to air that are periodically monitored"]
["Substance",null,"Ref. Period","Emission Limit Value",null,"Average",null,null,null,null,null,null,"User to add additional tables as necessary, depending on whether quarterly or bi-annual reporting is required for the compliance year"]
[null,null,null,null,null,"A1","A2","A3","A4","A5"]
["Hydrogen fluoride",null,"1 hr","2 mg/m3",null,0.24,"N/A","N/A","N/A","N/A"]
["Cd and Th and their compounds",null,"6-8hrs","0.05 mg/m3",null,2E-3,"N/A","N/A","N/A","N/A"]
["Hg and its compounds",null,"6-8hrs","0.05 mg/m3",null,1E-3,"N/A","N/A","N/A","N/A"]
["Sb, As, Pb, Cr, Co, Cu, Mn, Ni, V and their compounds",null,"6-8hrs","0.5 mg/m3",null,0.08,"N/A","N/A","N/A","N/A"]
["Dioxins & Furans (I-TEQ)",null,"6-8hrs","0.1 ng/m3",null,8.9999999999999993E-3,"N/A","N/A","N/A","N/A"]
["PCBs (WHO-TEQ Humans / Mammals)",null,"6-8hrs","None set ng/m3",null,3.0000000000000001E-3,"N/A","N/A","N/A","N/A"]
["PCBs (WHO-TEQ Fish)",null,"6-8hrs","None set ng/m3",null,2.0000000000000001E-4,"N/A","N/A","N/A","N/A"]
["PCBs (WHO-TEQ Birds)",null,"6-8hrs","None set ng/m3",null,6.0000000000000001E-3,"N/A","N/A","N/A","N/A"]
["Dioxins & Furans (WHO-TEQ Humans / Mammals)",null,"6-8hrs","None set ng/m3",null,7.0000000000000001E-3,"N/A","N/A","N/A","N/A"]
["Dioxins & Furans (WHO-TEQ Fish)",null,"6-8hrs","None set ng/m3",null,7.0000000000000001E-3,"N/A","N/A","N/A","N/A"]
["Dioxins & Furans (WHO-TEQ Birds)",null,"6-8hrs","None set ng/m3",null,0.01,"N/A","N/A","N/A","N/A"]
["Anthanthrene",null,"6-8hrs","None set µg/m3",null,"<0.0038","N/A","N/A","N/A","N/A"]
["Benzo(a)anthracene",null,"6-8hrs","None set µg/m3",null,"<0.0038","N/A","N/A","N/A","N/A"]
["Benzo(a)pyrene",null,"6-8hrs","None set µg/m3",null,"<0.0038","N/A","N/A","N/A","N/A"]
["Benzo(b)fluoranthene",null,"6-8hrs","None set µg/m3",null,"<0.0038","N/A","N/A","N/A","N/A"]
["Benzo(b)naptho(2,1-d) thiophene",null,"6-8hrs","None set µg/m3",null,"<0.0051","N/A","N/A","N/A","N/A"]
["Benzo(c)phenanthrene",null,"6-8hrs","None set µg/m3",null,"<0.0051","N/A","N/A","N/A","N/A"]
["Benzo(ghi)perylene",null,"6-8hrs","None set µg/m3",null,"<0.0038","N/A","N/A","N/A","N/A"]
["Benzo(k)fluoranthene",null,"6-8hrs","None set µg/m3",null,"<0.0038","N/A","N/A","N/A","N/A"]
["Cholanthrene",null,"6-8hrs","None set µg/m3",null,"<0.0051","N/A","N/A","N/A","N/A"]
["Chrysene",null,"6-8hrs","None set µg/m3",null,0.01,"N/A","N/A","N/A","N/A"]
["Cyclopenta(cd)pyrene",null,"6-8hrs","None set µg/m3",null,"<0.0051","N/A","N/A","N/A","N/A"]
["Dibenzo(ai)pyrene",null,"6-8hrs","None set µg/m3",null,"<0.0064","N/A","N/A","N/A","N/A"]
["Dibenzo(ah)anthracene",null,"6-8hrs","None set µg/m3",null,"<0.0038","N/A","N/A","N/A","N/A"]
["Fluoranthene",null,"6-8hrs","None set µg/m3",null,0.01,"N/A","N/A","N/A","N/A"]
["Indeno(123-cd) pyrene",null,"6-8hrs","None set µg/m3",null,"<0.0038","N/A","N/A","N/A","N/A"]
["Naphthalene",null,"6-8hrs","None set µg/m3",null,0.05,"N/A","N/A","N/A","N/A"]
["Nitrous Oxide",null,"1 hr","None set mg/m3",null,0.28999999999999998,"N/A","N/A","N/A","N/A"]
["Comments :"]
["Stack test completed 27th - 29th April 2020."]

{"sheet":"Air (periodic) H2 stack test","index":13,"n_rows":41,"n_cols":13,"rows_kept":41,"cut":false,"hidden":false,"merged":[[39,0,39,9],[40,0,41,9],[36,0,36,1],[36,3,36,4],[37,0,37,1],[37,3,37,4],[38,0,38,1],[38,3,38,4],[33,0,33,1],[33,3,33,4],[34,0,34,1],[34,3,34,4],[35,0,35,1],[35,3,35,4],[30,0,30,1],[30,3,30,4],[31,0,31,1],[31,3,31,4],[32,0,32,1],[32,3,32,4],[27,0,27,1],[27,3,27,4],[28,0,28,1],[28,3,28,4],[29,0,29,1],[29,3,29,4],[24,0,24,1],[24,3,24,4],[25,0,25,1],[25,3,25,4],[26,0,26,1],[26,3,26,4],[21,0,21,1],[21,3,21,4],[22,0,22,1],[22,3,22,4],[23,0,23,1],[23,3,23,4],[18,0,18,1],[18,3,18,4],[19,0,19,1],[19,3,19,4],[20,0,20,1],[20,3,20,4],[15,0,15,1],[15,3,15,4],[16,0,16,1],[16,3,16,4],[17,0,17,1],[17,3,17,4],[12,0,12,1],[12,3,12,4],[13,0,13,1],[13,3,13,4],[14,0,14,1],[14,3,14,4],[5,0,6,9],[5,12,8,15],[8,0,8,9],[9,0,10,1],[9,2,10,2],[9,3,10,4],[9,5,9,9],[9,12,11,15],[11,0,11,1],[11,3,11,4]]}
[{"$f":"+'Cover Page'!$B$29","v":"Annual Performance Report 2020"},null,null,null,{"$f":"+'Cover Page'!$B$33","v":"Peterborough Energy Recovery Facility"}]
[]
["Emissions to Air (periodically monitored)"]
[]
["Summary of monitoring undertaken, standards used and compliance",null,null,null,null,null,null,null,null,null,null,null,"Notes:"]
["All analysis below completed by permit specified BS EN method other than nitrous oxide which was completed by allowed alternative method M22.",null,null,null,null,null,null,null,null,null,null,null,"Template may require adjustment for any bespoke monitoring requirements of permit. "]
[]
[]
["Results of emissions to air that are periodically monitored"]
["Substance",null,"Ref. Period","Emission Limit Value",null,"Average",null,null,null,null,null,null,"User to add additional tables as necessary, depending on whether quarterly or bi-annual reporting is required for the compliance year"]
[null,null,null,null,null,"A1","A2","A3","A4","A5"]
["Hydrogen fluoride",null,"1 hr","2 mg/m3",null,0.15,"N/A","N/A","N/A","N/A"]
["Cd and Th and their compounds",null,"6-8hrs","0.05 mg/m3",null,8.9999999999999998E-4,"N/A","N/A","N/A","N/A"]
["Hg and its compounds",null,"6-8hrs","0.05 mg/m3",null,5.0000000000000001E-4,"N/A","N/A","N/A","N/A"]
["Sb, As, Pb, Cr, Co, Cu, Mn, Ni, V and their compounds",null,"6-8hrs","0.5 mg/m3",null,0.08,"N/A","N/A","N/A","N/A"]
["Dioxins & Furans (I-TEQ)",null,"6-8hrs","0.1 ng/m3",null,2.0000000000000001E-4,"N/A","N/A","N/A","N/A"]
["PCBs (WHO-TEQ Humans / Mammals)",null,"6-8hrs","None set ng/m3",null,2.9999999999999997E-4,"N/A","N/A","N/A","N/A"]
["PCBs (WHO-TEQ Fish)",null,"6-8hrs","None set ng/m3",null,0,"N/A","N/A","N/A","N/A"]
["PCBs (WHO-TEQ Birds)",null,"6-8hrs","None set ng/m3",null,1E-3,"N/A","N/A","N/A","N/A"]
["Dioxins & Furans (WHO-TEQ Humans / Mammals)",null,"6-8hrs","None set ng/m3",null,2.0000000000000001E-4,"N/A","N/A","N/A","N/A"]
["Dioxins & Furans (WHO-TEQ Fish)",null,"6-8hrs","None set ng/m3",null,2.9999999999999997E-4,"N/A","N/A","N/A","N/A"]
["Dioxins & Furans (WHO-TEQ Birds)",null,"6-8hrs","None set ng/m3",null,2.9999999999999997E-4,"N/A","N/A","N/A","N/A"]
["Anthanthrene",null,"6-8hrs","None set µg/m3",null,"<0.0017","N/A","N/A","N/A","N/A"]
["Benzo(a)anthracene",null,"6-8hrs","None set µg/m3",null,6.0000000000000001E-3,"N/A","N/A","N/A","N/A"]
["Benzo(a)pyrene",null,"6-8hrs","None set µg/m3",null,3.0000000000000001E-3,"N/A","N/A","N/A","N/A"]
["Benzo(b)fluoranthene",null,"6-8hrs","None set µg/m3",null,0.1,"N/A","N/A","N/A","N/A"]
["Benzo(b)naptho(2,1-d) thiophene",null,"6-8hrs","None set µg/m3",null,3.0000000000000001E-3,"N/A","N/A","N/A","N/A"]
["Benzo(c)phenanthrene",null,"6-8hrs","None set µg/m3",null,2E-3,"N/A","N/A","N/A","N/A"]
["Benzo(ghi)perylene",null,"6-8hrs","None set µg/m3",null,7.0000000000000001E-3,"N/A","N/A","N/A","N/A"]
["Benzo(k)fluoranthene",null,"6-8hrs","None set µg/m3",null,3.4000000000000002E-2,"N/A","N/A","N/A","N/A"]
["Cholanthrene",null,"6-8hrs","None set µg/m3",null,0.01,"N/A","N/A","N/A","N/A"]
["Chrysene",null,"6-8hrs","None set µg/m3",null,1.2999999999999999E-2,"N/A","N/A","N/A","N/A"]
["Cyclopenta(cd)pyrene",null,"6-8hrs","None set µg/m3",null,5.0000000000000001E-3,"N/A","N/A","N/A","N/A"]
["Dibenzo(ai)pyrene",null,"6-8hrs","None set µg/m3",null,"<0.0017","N/A","N/A","N/A","N/A"]
["Dibenzo(ah)anthracene",null,"6-8hrs","None set µg/m3",null,"<0.0017","N/A","N/A","N/A","N/A"]
["Fluoranthene",null,"6-8hrs","None set µg/m3",null,6.9000000000000006E-2,"N/A","N/A","N/A","N/A"]
["Indeno(123-cd) pyrene",null,"6-8hrs","None set µg/m3",null,4.0000000000000001E-3,"N/A","N/A","N/A","N/A"]
["Naphthalene",null,"6-8hrs","None set µg/m3",null,2.8889999999999998,"N/A","N/A","N/A","N/A"]
["Nitrous Oxide",null,"1 hr","None set mg/m3",null,0.03,"N/A","N/A","N/A","N/A"]
["Comments :"]
["Stack test completed 6th - 13th October 2020."]

{"sheet":"Air (CEMS)","index":14,"n_rows":28,"n_cols":16,"rows_kept":28,"cut":false,"hidden":false,"merged":[[25,0,25,12],[27,0,28,12],[11,0,12,0],[5,0,6,12],[8,0,8,12],[9,0,10,0],[9,2,10,2],[9,1,10,1],[9,3,9,4],[9,5,9,6],[9,7,9,8],[9,9,9,10],[9,11,9,12],[26,1,26,12]]}
[{"$f":"+'Cover Page'!$B$29","v":"Annual Performance Report 2020"},null,null,null,null,null,null,null,{"$f":"+'Cover Page'!$B$33","v":"Peterborough Energy Recovery Facility"}]
[]
["Emissions to Air (continously monitored)"]
[null,null,null,null,null,null,null,null,null,null,null,null,null,null,null,"Notes:"]
["Summary of monitoring undertaken, standards used and compliance",null,null,null,null,null,null,null,null,null,null,null,null,null,null,"Template may require adjustment for any bespoke monitoring requirements of permit"]
["All results below monitored by CEMs.\nNo invalid days of data.",null,null,null,null,null,null,null,null,null,null,null,null,null,null,"Report to 2 decimal places, i.e. xx.xx%"]
[]
[]
["Results of emissions to air that are continuously monitored (maximum and average values for each line)"]
["Substance","Reference Period","Emission Limit Value","A1",null,"A2",null,"A3",null,"A4",null,"A5"]
[null,null,null,"Max.","Avg.","Max.","Avg.","Max.","Avg.","Max.","Avg.","Max.","Avg."]
["Oxides of nitrogen","Daily mean","150 mg/m3 ",{"$f":"NOx!O19","v":127.8},{"$f":"NOx!N19","v":114.73333333333333},"N/A","N/A","N/A","N/A","N/A","N/A","N/A","N/A"]
[null,"½ hourly mean","400 mg/m3 ",{"$f":"NOx!M19","v":184.4},{"$f":"NOx!L19","v":114.375},"N/A","N/A","N/A","N/A","N/A","N/A","N/A","N/A"]
["Particulates","Daily mean","10 mg/m3",{"$f":"Particulates!O19","v":3.7},{"$f":"Particulates!N19","v":0.28491666666666671},"N/A","N/A","N/A","N/A","N/A","N/A","N/A","N/A"]
[null,"½ hourly mean","30 mg/m3 ",{"$f":"Particulates!M19","v":151.9},{"$f":"Particulates!L19","v":0.29191666666666671},"N/A","N/A","N/A","N/A","N/A","N/A","N/A","N/A"]
["Total Organic Carbon ","Daily mean","10 mg/m3 ",{"$f":"TOC!O19","v":1.3},{"$f":"TOC!N19","v":2.1000000000000001E-2},"N/A","N/A","N/A","N/A","N/A","N/A","N/A","N/A"]
[null,"½ hourly mean","20 mg/m3 ",{"$f":"TOC!M19","v":55.7},{"$f":"TOC!L19","v":2.491666666666667E-2},"N/A","N/A","N/A","N/A","N/A","N/A","N/A","N/A"]
["Hydrogen chloride ","Daily mean","10 mg/m3 ",{"$f":"HCl!O19","v":9.1},{"$f":"HCl!N19","v":7.1075000000000017},"N/A","N/A","N/A","N/A","N/A","N/A","N/A","N/A"]
[null,"½ hourly mean","60 mg/m3 ",{"$f":"HCl!M19","v":29},{"$f":"HCl!L19","v":7.0666666666666664},"N/A","N/A","N/A","N/A","N/A","N/A","N/A","N/A"]
["Sulphur dioxide","Daily mean","50 mg/m3 ",{"$f":"'SO2'!O19","v":38.1},{"$f":"'SO2'!N19","v":12.776666666666671},"N/A","N/A","N/A","N/A","N/A","N/A","N/A","N/A"]
[null,"½ hourly mean","200 mg/m3 ",{"$f":"'SO2'!M19","v":127.9},{"$f":"'SO2'!L19","v":12.808333333333332},"N/A","N/A","N/A","N/A","N/A","N/A","N/A","N/A"]
["Carbon monoxide ","Daily mean","50 mg/m3 ",{"$f":"'CO 95% 10 min'!Q19","v":2.4},{"$f":"'CO 95% 10 min'!P19","v":0.26416666666666672},"N/A","N/A","N/A","N/A","N/A","N/A","N/A","N/A"]
[null,"½ hourly mean *","100 mg/m3 *","N/A","N/A","N/A","N/A","N/A","N/A","N/A","N/A","N/A","N/A"]
[null,"95%ile 10-min avg *","150 mg/m3 *",{"$f":"'CO 95% 10 min'!M19","v":13},{"$f":"'CO 95% 10 min'!N19","v":0.26666666666666661},"N/A","N/A","N/A","N/A","N/A","N/A","N/A","N/A"]
[" Ammonia","Daily mean","No limit set",{"$f":"'NH3'!O19","v":6},{"$f":"'NH3'!N19","v":0.96666666666666667},"N/A","N/A","N/A","N/A","N/A","N/A","N/A","N/A"]
["* = delete or amend as appropriate"]
["Comments :","31st March 2020 - TOC - one half hour 55.7mg/Nm3 - Schedule 5 duly submitted.\n3rd June 2020 - TOC - one half hour 21.9mg/Nm3 - Schedule 5 duly submitted.\n13th April half hour reading of 151.9 was an instrument error - reported - abnormal operations. The other in line instrument confirmed the actual reading from the combustion process as 0.1mg/Nm3."]
["Note: Daily NOx ELV is 150mg/Nm3 not 200mg/Nm3."]

{"sheet":"HCl","index":15,"n_rows":79,"n_cols":17,"rows_kept":79,"cut":false,"hidden":false,"merged":[[12,16,15,18],[51,9,63,9],[66,9,78,9],[4,9,4,14],[4,1,4,3],[4,4,4,6],[48,0,51,6],[47,0,47,6],[6,9,18,9],[21,9,33,9],[36,9,48,9],[3,16,7,18],[9,16,11,18]]}
[{"$f":"+'Cover Page'!$B$29","v":"Annual Performance Report 2020"},null,null,null,{"$f":"+'Cover Page'!$B$33","v":"Peterborough Energy Recovery Facility"}]
[]
["Monitoring of Hydrogen Chloride emissions",null,null,"Whole Installation",null,null,"See  Notes in Cell Q3",null,null,{"$f":"+A3","v":"Monitoring of Hydrogen Chloride emissions"},null,null,null,"Per Combustion Line",null,null,"Notes:"]
[null,null,null,null,null,null,null,null,null,null,null,null,null,null,null,null,"User to add logic to complete Whole installation, Table A5:G18. From the data in Per Combustion Line, Table J6:O79, subject to No. of lines installed"]
["mg/Nm3","1/2 Hourly Reference Periods",null,null,"Daily Reference Periods"]
[{"$f":"+'Cover Page'!C39","v":2020},"1/2 hourly HCl ELV","Monthly 1/2 hourly mean","Highest 1/2 hourly maximum","Daily HCl ELV","Monthly daily mean","Highest daily maximum",null,null,{"$f":"+A6","v":2020},"mg/Nm3","Monthly 1/2 hourly mean","Monthly 1/2 hourly maximum","Monthly daily mean","Monthly daily maximum"]
["Jan",60,{"$f":"L7","v":7.3},{"$f":"M7","v":13.4},10,{"$f":"N7","v":7.32},{"$f":"O7","v":7.5},null,null,"A1","Jan",7.3,13.4,7.32,7.5]
["Feb",60,{"$f":"L8","v":7.3},{"$f":"M8","v":19.8},10,{"$f":"N8","v":7.44},{"$f":"O8","v":8.3000000000000007},null,null,null,"Feb",7.3,19.8,7.44,8.3000000000000007]
["Mar",60,7.5,12.4,10,7.52,7.6,null,null,null,"Mar",7.5,12.4,7.52,7.6,null,"Whole Installation table A5:G18:"]
["Apr",60,7.2,29,10,7.23,9.1,null,null,null,"Apr",7.2,29,7.23,9.1,null,"Mean: for 1/2 hourly and daily periods calculate mean of values across all operational combustion lines for the month"]
["May",60,7.2,10.8,10,7.25,7.7,null,null,null,"May",7.2,10.8,7.25,7.7]
["Jun",60,7.2,18.3,10,7.25,7.6,null,null,null,"Jun",7.2,18.3,7.25,7.6]
["Jul",60,7.1,19.899999999999999,10,7.13,7.8,null,null,null,"Jul",7.1,19.899999999999999,7.13,7.8,null,"Maximum: for 1/2 hourly and daily periods use the highest value across all operational combustion lines for the month"]
["Aug",60,7.5,15.2,10,7.51,7.8,null,null,null,"Aug",7.5,15.2,7.51,7.8]
["Sep",60,7.2,16.2,10,7.15,7.7,null,null,null,"Sep",7.2,16.2,7.15,7.7]
["Oct",60,6.5,15.8,10,6.62,7.7,null,null,null,"Oct",6.5,15.8,6.62,7.7]
["Nov",60,6.7,16.7,10,6.75,7.7,null,null,null,"Nov",6.7,16.7,6.75,7.7]
["Dec",60,6.1,19.7,10,6.12,7.6,null,null,null,"Dec",6.1,19.7,6.12,7.6]
[null,null,null,null,null,null,null,null,null,null,"Annual",{"$f":"AVERAGE(L7:L18)","v":7.0666666666666664},{"$f":"MAX(M7:M18)","v":29},{"$f":"AVERAGE(N7:N18)","v":7.1075000000000017},{"$f":"MAX(O7:O18)","v":9.1}]
[]
[null,null,null,null,null,null,null,null,null,{"$f":"+A6","v":2020},"mg/Nm3","Monthly 1/2 hourly mean","Monthly 1/2 hourly maximum","Monthly daily mean","Monthly daily maximum"]
[null,null,null,null,null,null,null,null,null,"A2","Jan","N/A","N/A","N/A","N/A"]
[null,null,null,null,null,null,null,null,null,null,"Feb","N/A","N/A","N/A","N/A"]
[null,null,null,null,null,null,null,null,null,null,"Mar","N/A","N/A","N/A","N/A"]
[null,null,null,null,null,null,null,null,null,null,"Apr","N/A","N/A","N/A","N/A"]
[null,null,null,null,null,null,null,null,null,null,"May","N/A","N/A","N/A","N/A"]
[null,null,null,null,null,null,null,null,null,null,"Jun","N/A","N/A","N/A","N/A"]
[null,null,null,null,null,null,null,null,null,null,"Jul","N/A","N/A","N/A","N/A"]
[null,null,null,null,null,null,null,null,null,null,"Aug","N/A","N/A","N/A","N/A"]
[null,null,null,null,null,null,null,null,null,null,"Sep","N/A","N/A","N/A","N/A"]
[null,null,null,null,null,null,null,null,null,null,"Oct","N/A","N/A","N/A","N/A"]
[null,null,null,null,null,null,null,null,null,null,"Nov","N/A","N/A","N/A","N/A"]
[null,null,null,null,null,null,null,null,null,null,"Dec","N/A","N/A","N/A","N/A"]
[null,null,null,null,null,null,null,null,null,null,"Annual",{"$f":"AVERAGE(L22:L33)","v":{"$error":"#DIV/0!"}},{"$f":"MAX(M22:M33)","v":0},{"$f":"AVERAGE(N22:N33)","v":{"$error":"#DIV/0!"}},{"$f":"MAX(O22:O33)","v":0}]
[]
[null,null,null,null,null,null,null,null,null,{"$f":"+A6","v":2020},"mg/Nm3","Monthly 1/2 hourly mean","Monthly 1/2 hourly maximum","Monthly daily mean","Monthly daily maximum"]
[null,null,null,null,null,null,null,null,null,"A3","Jan","N/A","N/A","N/A","N/A"]
[null,null,null,null,null,null,null,null,null,null,"Feb","N/A","N/A","N/A","N/A"]
[null,null,null,null,null,null,null,null,null,null,"Mar","N/A","N/A","N/A","N/A"]
[null,null,null,null,null,null,null,null,null,null,"Apr","N/A","N/A","N/A","N/A"]
[null,null,null,null,null,null,null,null,null,null,"May","N/A","N/A","N/A","N/A"]
[null,null,null,null,null,null,null,null,null,null,"Jun","N/A","N/A","N/A","N/A"]
[null,null,"01733 465284",null,null,null,null,null,null,null,"Jul","N/A","N/A","N/A","N/A"]
[null,null,null,null,null,null,null,null,null,null,"Aug","N/A","N/A","N/A","N/A"]
[null,null,"kgoldacre@viridor.co.uk ",null,null,null,null,null,null,null,"Sep","N/A","N/A","N/A","N/A"]
[null,null,null,null,null,null,null,null,null,null,"Oct","N/A","N/A","N/A","N/A"]
[null,null,null,null,null,null,null,null,null,null,"Nov","N/A","N/A","N/A","N/A"]
["Comments :",null,null,null,null,null,null,null,null,null,"Dec","N/A","N/A","N/A","N/A"]
[null,null,null,null,null,null,null,null,null,null,"Annual",{"$f":"AVERAGE(L37:L48)","v":{"$error":"#DIV/0!"}},{"$f":"MAX(M37:M48)","v":0},{"$f":"AVERAGE(N37:N48)","v":{"$error":"#DIV/0!"}},{"$f":"MAX(O37:O48)","v":0}]
[]
[null,null,null,null,null,null,null,null,null,{"$f":"+A6","v":2020},"mg/Nm3","Monthly 1/2 hourly mean","Monthly 1/2 hourly maximum","Monthly daily mean","Monthly daily maximum"]
[null,null,null,null,null,null,null,null,null,"A4","Jan","N/A","N/A","N/A","N/A"]
[null,null,null,null,null,null,null,null,null,null,"Feb","N/A","N/A","N/A","N/A"]
[null,null,null,null,null,null,null,null,null,null,"Mar","N/A","N/A","N/A","N/A"]
[null,null,null,null,null,null,null,null,null,null,"Apr","N/A","N/A","N/A","N/A"]
[null,null,null,null,null,null,null,null,null,null,"May","N/A","N/A","N/A","N/A"]
[null,null,null,null,null,null,null,null,null,null,"Jun","N/A","N/A","N/A","N/A"]
[null,null,null,null,null,null,null,null,null,null,"Jul","N/A","N/A","N/A","N/A"]
[null,null,null,null,null,null,null,null,null,null,"Aug","N/A","N/A","N/A","N/A"]
[null,null,null,null,null,null,null,null,null,null,"Sep","N/A","N/A","N/A","N/A"]
[null,null,null,null,null,null,null,null,null,null,"Oct","N/A","N/A","N/A","N/A"]
[null,null,null,null,null,null,null,null,null,null,"Nov","N/A","N/A","N/A","N/A"]
[null,null,null,null,null,null,null,null,null,null,"Dec","N/A","N/A","N/A","N/A"]
[null,null,null,null,null,null,null,null,null,null,"Annual",{"$f":"AVERAGE(L52:L63)","v":{"$error":"#DIV/0!"}},{"$f":"MAX(M52:M63)","v":0},{"$f":"AVERAGE(N52:N63)","v":{"$error":"#DIV/0!"}},{"$f":"MAX(O52:O63)","v":0}]
[]
[null,null,null,null,null,null,null,null,null,{"$f":"+A6","v":2020},"mg/Nm3","Monthly 1/2 hourly mean","Monthly 1/2 hourly maximum","Monthly daily mean","Monthly daily maximum"]
[null,null,null,null,null,null,null,null,null,"A5","Jan","N/A","N/A","N/A","N/A"]
[null,null,null,null,null,null,null,null,null,null,"Feb","N/A","N/A","N/A","N/A"]
[null,null,null,null,null,null,null,null,null,null,"Mar","N/A","N/A","N/A","N/A"]
[null,null,null,null,null,null,null,null,null,null,"Apr","N/A","N/A","N/A","N/A"]
[null,null,null,null,null,null,null,null,null,null,"May","N/A","N/A","N/A","N/A"]
[null,null,null,null,null,null,null,null,null,null,"Jun","N/A","N/A","N/A","N/A"]
[null,null,null,null,null,null,null,null,null,null,"Jul","N/A","N/A","N/A","N/A"]
[null,null,null,null,null,null,null,null,null,null,"Aug","N/A","N/A","N/A","N/A"]
[null,null,null,null,null,null,null,null,null,null,"Sep","N/A","N/A","N/A","N/A"]
[null,null,null,null,null,null,null,null,null,null,"Oct","N/A","N/A","N/A","N/A"]
[null,null,null,null,null,null,null,null,null,null,"Nov","N/A","N/A","N/A","N/A"]
[null,null,null,null,null,null,null,null,null,null,"Dec","N/A","N/A","N/A","N/A"]
[null,null,null,null,null,null,null,null,null,null,"Annual",{"$f":"AVERAGE(L67:L78)","v":{"$error":"#DIV/0!"}},{"$f":"MAX(M67:M78)","v":0},{"$f":"AVERAGE(N67:N78)","v":{"$error":"#DIV/0!"}},{"$f":"MAX(O67:O78)","v":0}]

{"sheet":"SO2","index":16,"n_rows":79,"n_cols":17,"rows_kept":79,"cut":false,"hidden":false,"merged":[[3,16,7,18],[9,16,11,18],[12,16,15,18],[66,9,78,9],[4,1,4,3],[4,4,4,6],[4,9,4,14],[6,9,18,9],[21,9,33,9],[36,9,48,9],[47,0,47,6],[48,0,51,6],[51,9,63,9]]}
[{"$f":"+'Cover Page'!$B$29","v":"Annual Performance Report 2020"},null,null,null,{"$f":"+'Cover Page'!$B$33","v":"Peterborough Energy Recovery Facility"}]
[]
["Monitoring of Sulphur dioxide emissions",null,null,"Whole Installation",null,null,"See  Notes in Cell Q3",null,null,{"$f":"+A3","v":"Monitoring of Sulphur dioxide emissions"},null,null,null,"Per Combustion Line",null,null,"Notes:"]
[null,null,null,null,null,null,null,null,null,null,null,null,null,null,null,null,"User to add logic to complete Whole installation, Table A5:G18. From the data in Per Combustion Line, Table J6:O79, subject to No. of lines installed"]
["mg/Nm3","1/2 Hourly Reference Periods",null,null,"Daily Reference Periods"]
[{"$f":"+'Cover Page'!C39","v":2020},"1/2 hourly SO2 ELV","Monthly 1/2 hourly mean","Highest 1/2 hourly maximum","Daily SO2 ELV","Monthly daily mean","Highest daily maximum",null,null,{"$f":"+A6","v":2020},"mg/Nm3","Monthly 1/2 hourly mean","Monthly 1/2 hourly maximum","Monthly daily mean","Monthly daily maximum"]
["Jan",200,{"$f":"L7","v":8.3000000000000007},{"$f":"M7","v":35.9},50,{"$f":"N7","v":8.33},{"$f":"O7","v":12.7},null,null,"A1","Jan",8.3000000000000007,35.9,8.33,12.7]
["Feb",200,{"$f":"L8","v":9.6999999999999993},{"$f":"M8","v":83.8},50,{"$f":"N8","v":8.6999999999999993},{"$f":"O8","v":17.8},null,null,null,"Feb",9.6999999999999993,83.8,8.6999999999999993,17.8]
["Mar",200,10.9,63.8,50,10.95,18.2,null,null,null,"Mar",10.9,63.8,10.95,18.2,null,"Whole Installation table A5:G18:"]
["Apr",200,21.9,83.2,50,22,38.1,null,null,null,"Apr",21.9,83.2,22,38.1,null,"Mean: for 1/2 hourly and daily periods calculate mean of values across all operational combustion lines for the month"]
["May",200,18.100000000000001,48.4,50,18.28,23.8,null,null,null,"May",18.100000000000001,48.4,18.28,23.8]
["Jun",200,15.8,85.2,50,15.9,30.2,null,null,null,"Jun",15.8,85.2,15.9,30.2]
["Jul",200,11.6,65.3,50,11.65,23,null,null,null,"Jul",11.6,65.3,11.65,23,null,"Maximum: for 1/2 hourly and daily periods use the highest value across all operational combustion lines for the month"]
["Aug",200,10.7,86.1,50,10.73,16.100000000000001,null,null,null,"Aug",10.7,86.1,10.73,16.100000000000001]
["Sep",200,11.1,94.8,50,11.11,22,null,null,null,"Sep",11.1,94.8,11.11,22]
["Oct",200,11.1,127.9,50,11.23,27.4,null,null,null,"Oct",11.1,127.9,11.23,27.4]
["Nov",200,11.9,50.9,50,11.83,18.7,null,null,null,"Nov",11.9,50.9,11.83,18.7]
["Dec",200,12.6,95.7,50,12.61,28.5,null,null,null,"Dec",12.6,95.7,12.61,28.5]
[null,null,null,null,null,null,null,null,null,null,"Annual",{"$f":"AVERAGE(L7:L18)","v":12.808333333333332},{"$f":"MAX(M7:M18)","v":127.9},{"$f":"AVERAGE(N7:N18)","v":12.776666666666671},{"$f":"MAX(O7:O18)","v":38.1}]
[]
[null,null,null,null,null,null,null,null,null,{"$f":"+A6","v":2020},"mg/Nm3","Monthly 1/2 hourly mean","Monthly 1/2 hourly maximum","Monthly daily mean","Monthly daily maximum"]
[null,null,null,null,null,null,null,null,null,"A2","Jan","N/A","N/A","N/A","N/A"]
[null,null,null,null,null,null,null,null,null,null,"Feb","N/A","N/A","N/A","N/A"]
[null,null,null,null,null,null,null,null,null,null,"Mar","N/A","N/A","N/A","N/A"]
[null,null,null,null,null,null,null,null,null,null,"Apr","N/A","N/A","N/A","N/A"]
[null,null,null,null,null,null,null,null,null,null,"May","N/A","N/A","N/A","N/A"]
[null,null,null,null,null,null,null,null,null,null,"Jun","N/A","N/A","N/A","N/A"]
[null,null,null,null,null,null,null,null,null,null,"Jul","N/A","N/A","N/A","N/A"]
[null,null,null,null,null,null,null,null,null,null,"Aug","N/A","N/A","N/A","N/A"]
[null,null,null,null,null,null,null,null,null,null,"Sep","N/A","N/A","N/A","N/A"]
[null,null,null,null,null,null,null,null,null,null,"Oct","N/A","N/A","N/A","N/A"]
[null,null,null,null,null,null,null,null,null,null,"Nov","N/A","N/A","N/A","N/A"]
[null,null,null,null,null,null,null,null,null,null,"Dec","N/A","N/A","N/A","N/A"]
[null,null,null,null,null,null,null,null,null,null,"Annual",{"$f":"AVERAGE(L22:L33)","v":{"$error":"#DIV/0!"}},{"$f":"MAX(M22:M33)","v":0},{"$f":"AVERAGE(N22:N33)","v":{"$error":"#DIV/0!"}},{"$f":"MAX(O22:O33)","v":0}]
[]
[null,null,null,null,null,null,null,null,null,{"$f":"+A6","v":2020},"mg/Nm3","Monthly 1/2 hourly mean","Monthly 1/2 hourly maximum","Monthly daily mean","Monthly daily maximum"]
[null,null,null,null,null,null,null,null,null,"A3","Jan","N/A","N/A","N/A","N/A"]
[null,null,null,null,null,null,null,null,null,null,"Feb","N/A","N/A","N/A","N/A"]
[null,null,null,null,null,null,null,null,null,null,"Mar","N/A","N/A","N/A","N/A"]
[null,null,null,null,null,null,null,null,null,null,"Apr","N/A","N/A","N/A","N/A"]
[null,null,null,null,null,null,null,null,null,null,"May","N/A","N/A","N/A","N/A"]
[null,null,null,null,null,null,null,null,null,null,"Jun","N/A","N/A","N/A","N/A"]
[null,null,"01733 465284",null,null,null,null,null,null,null,"Jul","N/A","N/A","N/A","N/A"]
[null,null,null,null,null,null,null,null,null,null,"Aug","N/A","N/A","N/A","N/A"]
[null,null,"kgoldacre@viridor.co.uk ",null,null,null,null,null,null,null,"Sep","N/A","N/A","N/A","N/A"]
[null,null,null,null,null,null,null,null,null,null,"Oct","N/A","N/A","N/A","N/A"]
[null,null,null,null,null,null,null,null,null,null,"Nov","N/A","N/A","N/A","N/A"]
["Comments :",null,null,null,null,null,null,null,null,null,"Dec","N/A","N/A","N/A","N/A"]
[null,null,null,null,null,null,null,null,null,null,"Annual",{"$f":"AVERAGE(L37:L48)","v":{"$error":"#DIV/0!"}},{"$f":"MAX(M37:M48)","v":0},{"$f":"AVERAGE(N37:N48)","v":{"$error":"#DIV/0!"}},{"$f":"MAX(O37:O48)","v":0}]
[]
[null,null,null,null,null,null,null,null,null,{"$f":"+A6","v":2020},"mg/Nm3","Monthly 1/2 hourly mean","Monthly 1/2 hourly maximum","Monthly daily mean","Monthly daily maximum"]
[null,null,null,null,null,null,null,null,null,"A4","Jan","N/A","N/A","N/A","N/A"]
[null,null,null,null,null,null,null,null,null,null,"Feb","N/A","N/A","N/A","N/A"]
[null,null,null,null,null,null,null,null,null,null,"Mar","N/A","N/A","N/A","N/A"]
[null,null,null,null,null,null,null,null,null,null,"Apr","N/A","N/A","N/A","N/A"]
[null,null,null,null,null,null,null,null,null,null,"May","N/A","N/A","N/A","N/A"]
[null,null,null,null,null,null,null,null,null,null,"Jun","N/A","N/A","N/A","N/A"]
[null,null,null,null,null,null,null,null,null,null,"Jul","N/A","N/A","N/A","N/A"]
[null,null,null,null,null,null,null,null,null,null,"Aug","N/A","N/A","N/A","N/A"]
[null,null,null,null,null,null,null,null,null,null,"Sep","N/A","N/A","N/A","N/A"]
[null,null,null,null,null,null,null,null,null,null,"Oct","N/A","N/A","N/A","N/A"]
[null,null,null,null,null,null,null,null,null,null,"Nov","N/A","N/A","N/A","N/A"]
[null,null,null,null,null,null,null,null,null,null,"Dec","N/A","N/A","N/A","N/A"]
[null,null,null,null,null,null,null,null,null,null,"Annual",{"$f":"AVERAGE(L52:L63)","v":{"$error":"#DIV/0!"}},{"$f":"MAX(M52:M63)","v":0},{"$f":"AVERAGE(N52:N63)","v":{"$error":"#DIV/0!"}},{"$f":"MAX(O52:O63)","v":0}]
[]
[null,null,null,null,null,null,null,null,null,{"$f":"+A6","v":2020},"mg/Nm3","Monthly 1/2 hourly mean","Monthly 1/2 hourly maximum","Monthly daily mean","Monthly daily maximum"]
[null,null,null,null,null,null,null,null,null,"A5","Jan","N/A","N/A","N/A","N/A"]
[null,null,null,null,null,null,null,null,null,null,"Feb","N/A","N/A","N/A","N/A"]
[null,null,null,null,null,null,null,null,null,null,"Mar","N/A","N/A","N/A","N/A"]
[null,null,null,null,null,null,null,null,null,null,"Apr","N/A","N/A","N/A","N/A"]
[null,null,null,null,null,null,null,null,null,null,"May","N/A","N/A","N/A","N/A"]
[null,null,null,null,null,null,null,null,null,null,"Jun","N/A","N/A","N/A","N/A"]
[null,null,null,null,null,null,null,null,null,null,"Jul","N/A","N/A","N/A","N/A"]
[null,null,null,null,null,null,null,null,null,null,"Aug","N/A","N/A","N/A","N/A"]
[null,null,null,null,null,null,null,null,null,null,"Sep","N/A","N/A","N/A","N/A"]
[null,null,null,null,null,null,null,null,null,null,"Oct","N/A","N/A","N/A","N/A"]
[null,null,null,null,null,null,null,null,null,null,"Nov","N/A","N/A","N/A","N/A"]
[null,null,null,null,null,null,null,null,null,null,"Dec","N/A","N/A","N/A","N/A"]
[null,null,null,null,null,null,null,null,null,null,"Annual",{"$f":"AVERAGE(L67:L78)","v":{"$error":"#DIV/0!"}},{"$f":"MAX(M67:M78)","v":0},{"$f":"AVERAGE(N67:N78)","v":{"$error":"#DIV/0!"}},{"$f":"MAX(O67:O78)","v":0}]

{"sheet":"NOx","index":17,"n_rows":79,"n_cols":17,"rows_kept":79,"cut":false,"hidden":false,"merged":[[3,16,7,18],[9,16,11,18],[12,16,15,18],[66,9,78,9],[4,1,4,3],[4,4,4,6],[4,9,4,14],[6,9,18,9],[21,9,33,9],[36,9,48,9],[47,0,47,6],[48,0,51,6],[51,9,63,9]]}
[{"$f":"+'Cover Page'!$B$29","v":"Annual Performance Report 2020"},null,null,null,{"$f":"+'Cover Page'!$B$33","v":"Peterborough Energy Recovery Facility"}]
[]
["Monitoring of Oxides of Nitrogen emissions",null,null,"Whole Installation",null,null,"See  Notes in Cell Q3",null,null,{"$f":"+A3","v":"Monitoring of Oxides of Nitrogen emissions"},null,null,null,"Per Combustion Line",null,null,"Notes:"]
[null,null,null,null,null,null,null,null,null,null,null,null,null,null,null,null,"User to add logic to complete Whole installation, Table A5:G18. From the data in Per Combustion Line, Table J6:O79, subject to No. of lines installed"]
["mg/Nm3","1/2 Hourly Reference Periods",null,null,"Daily Reference Periods"]
[{"$f":"+'Cover Page'!C39","v":2020},"1/2 hourly NOx ELV","Monthly 1/2 hourly mean","Highest 1/2 hourly maximum","Daily NOx ELV","Monthly daily mean","Highest daily maximum",null,null,{"$f":"+A6","v":2020},"mg/Nm3","Monthly 1/2 hourly mean","Monthly 1/2 hourly maximum","Monthly daily mean","Monthly daily maximum"]
["Jan",400,{"$f":"L7","v":119.4},{"$f":"M7","v":184.4},150,{"$f":"N7","v":119.44},{"$f":"O7","v":127.8},null,null,"A1","Jan",119.4,184.4,119.44,127.8]
["Feb",400,{"$f":"L8","v":115.2},{"$f":"M8","v":150.4},150,{"$f":"N8","v":116.04},{"$f":"O8","v":118.6},null,null,null,"Feb",115.2,150.4,116.04,118.6]
["Mar",400,112.3,141.5,150,114.16,117.4,null,null,null,"Mar",112.3,141.5,114.16,117.4,null,"Whole Installation table A5:G18:"]
["Apr",400,113.5,128.69999999999999,150,114.3,116.1,null,null,null,"Apr",113.5,128.69999999999999,114.3,116.1,null,"Mean: for 1/2 hourly and daily periods calculate mean of values across all operational combustion lines for the month"]
["May",400,111.9,157,150,112.14,117.6,null,null,null,"May",111.9,157,112.14,117.6]
["Jun",400,114.9,124.9,150,114.9,116.2,null,null,null,"Jun",114.9,124.9,114.9,116.2]
["Jul",400,115.1,129.19999999999999,150,115.11,116.2,null,null,null,"Jul",115.1,129.19999999999999,115.11,116.2,null,"Maximum: for 1/2 hourly and daily periods use the highest value across all operational combustion lines for the month"]
["Aug",400,114.8,126.1,150,114.77,116.2,null,null,null,"Aug",114.8,126.1,114.77,116.2]
["Sep",400,110.9,129.69999999999999,150,110.88,116,null,null,null,"Sep",110.9,129.69999999999999,110.88,116]
["Oct",400,114.8,131,150,114.9,116.1,null,null,null,"Oct",114.8,131,114.9,116.1]
["Nov",400,115.8,145.69999999999999,150,115.8,117.1,null,null,null,"Nov",115.8,145.69999999999999,115.8,117.1]
["Dec",400,113.9,127,150,114.36,116.2,null,null,null,"Dec",113.9,127,114.36,116.2]
[null,null,null,null,null,null,null,null,null,null,"Annual",{"$f":"AVERAGE(L7:L18)","v":114.375},{"$f":"MAX(M7:M18)","v":184.4},{"$f":"AVERAGE(N7:N18)","v":114.73333333333333},{"$f":"MAX(O7:O18)","v":127.8}]
[]
[null,null,null,null,null,null,null,null,null,{"$f":"+A6","v":2020},"mg/Nm3","Monthly 1/2 hourly mean","Monthly 1/2 hourly maximum","Monthly daily mean","Monthly daily maximum"]
[null,null,null,null,null,null,null,null,null,"A2","Jan","N/A","N/A","N/A","N/A"]
[null,null,null,null,null,null,null,null,null,null,"Feb","N/A","N/A","N/A","N/A"]
[null,null,null,null,null,null,null,null,null,null,"Mar","N/A","N/A","N/A","N/A"]
[null,null,null,null,null,null,null,null,null,null,"Apr","N/A","N/A","N/A","N/A"]
[null,null,null,null,null,null,null,null,null,null,"May","N/A","N/A","N/A","N/A"]
[null,null,null,null,null,null,null,null,null,null,"Jun","N/A","N/A","N/A","N/A"]
[null,null,null,null,null,null,null,null,null,null,"Jul","N/A","N/A","N/A","N/A"]
[null,null,null,null,null,null,null,null,null,null,"Aug","N/A","N/A","N/A","N/A"]
[null,null,null,null,null,null,null,null,null,null,"Sep","N/A","N/A","N/A","N/A"]
[null,null,null,null,null,null,null,null,null,null,"Oct","N/A","N/A","N/A","N/A"]
[null,null,null,null,null,null,null,null,null,null,"Nov","N/A","N/A","N/A","N/A"]
[null,null,null,null,null,null,null,null,null,null,"Dec","N/A","N/A","N/A","N/A"]
[null,null,null,null,null,null,null,null,null,null,"Annual",{"$f":"AVERAGE(L22:L33)","v":{"$error":"#DIV/0!"}},{"$f":"MAX(M22:M33)","v":0},{"$f":"AVERAGE(N22:N33)","v":{"$error":"#DIV/0!"}},{"$f":"MAX(O22:O33)","v":0}]
[]
[null,null,null,null,null,null,null,null,null,{"$f":"+A6","v":2020},"mg/Nm3","Monthly 1/2 hourly mean","Monthly 1/2 hourly maximum","Monthly daily mean","Monthly daily maximum"]
[null,null,null,null,null,null,null,null,null,"A3","Jan","N/A","N/A","N/A","N/A"]
[null,null,null,null,null,null,null,null,null,null,"Feb","N/A","N/A","N/A","N/A"]
[null,null,null,null,null,null,null,null,null,null,"Mar","N/A","N/A","N/A","N/A"]
[null,null,null,null,null,null,null,null,null,null,"Apr","N/A","N/A","N/A","N/A"]
[null,null,null,null,null,null,null,null,null,null,"May","N/A","N/A","N/A","N/A"]
[null,null,null,null,null,null,null,null,null,null,"Jun","N/A","N/A","N/A","N/A"]
[null,null,"01733 465284",null,null,null,null,null,null,null,"Jul","N/A","N/A","N/A","N/A"]
[null,null,null,null,null,null,null,null,null,null,"Aug","N/A","N/A","N/A","N/A"]
[null,null,"kgoldacre@viridor.co.uk ",null,null,null,null,null,null,null,"Sep","N/A","N/A","N/A","N/A"]
[null,null,null,null,null,null,null,null,null,null,"Oct","N/A","N/A","N/A","N/A"]
[null,null,null,null,null,null,null,null,null,null,"Nov","N/A","N/A","N/A","N/A"]
["Comments :",null,null,null,null,null,null,null,null,null,"Dec","N/A","N/A","N/A","N/A"]
["NOTE: Site has a daily ELV of 150mg/Nm3 (rather than the IED standard of 200mg/Nm3)",null,null,null,null,null,null,null,null,null,"Annual",{"$f":"AVERAGE(L37:L48)","v":{"$error":"#DIV/0!"}},{"$f":"MAX(M37:M48)","v":0},{"$f":"AVERAGE(N37:N48)","v":{"$error":"#DIV/0!"}},{"$f":"MAX(O37:O48)","v":0}]
[]
[null,null,null,null,null,null,null,null,null,{"$f":"+A6","v":2020},"mg/Nm3","Monthly 1/2 hourly mean","Monthly 1/2 hourly maximum","Monthly daily mean","Monthly daily maximum"]
[null,null,null,null,null,null,null,null,null,"A4","Jan","N/A","N/A","N/A","N/A"]
[null,null,null,null,null,null,null,null,null,null,"Feb","N/A","N/A","N/A","N/A"]
[null,null,null,null,null,null,null,null,null,null,"Mar","N/A","N/A","N/A","N/A"]
[null,null,null,null,null,null,null,null,null,null,"Apr","N/A","N/A","N/A","N/A"]
[null,null,null,null,null,null,null,null,null,null,"May","N/A","N/A","N/A","N/A"]
[null,null,null,null,null,null,null,null,null,null,"Jun","N/A","N/A","N/A","N/A"]
[null,null,null,null,null,null,null,null,null,null,"Jul","N/A","N/A","N/A","N/A"]
[null,null,null,null,null,null,null,null,null,null,"Aug","N/A","N/A","N/A","N/A"]
[null,null,null,null,null,null,null,null,null,null,"Sep","N/A","N/A","N/A","N/A"]
[null,null,null,null,null,null,null,null,null,null,"Oct","N/A","N/A","N/A","N/A"]
[null,null,null,null,null,null,null,null,null,null,"Nov","N/A","N/A","N/A","N/A"]
[null,null,null,null,null,null,null,null,null,null,"Dec","N/A","N/A","N/A","N/A"]
[null,null,null,null,null,null,null,null,null,null,"Annual",{"$f":"AVERAGE(L52:L63)","v":{"$error":"#DIV/0!"}},{"$f":"MAX(M52:M63)","v":0},{"$f":"AVERAGE(N52:N63)","v":{"$error":"#DIV/0!"}},{"$f":"MAX(O52:O63)","v":0}]
[]
[null,null,null,null,null,null,null,null,null,{"$f":"+A6","v":2020},"mg/Nm3","Monthly 1/2 hourly mean","Monthly 1/2 hourly maximum","Monthly daily mean","Monthly daily maximum"]
[null,null,null,null,null,null,null,null,null,"A5","Jan","N/A","N/A","N/A","N/A"]
[null,null,null,null,null,null,null,null,null,null,"Feb","N/A","N/A","N/A","N/A"]
[null,null,null,null,null,null,null,null,null,null,"Mar","N/A","N/A","N/A","N/A"]
[null,null,null,null,null,null,null,null,null,null,"Apr","N/A","N/A","N/A","N/A"]
[null,null,null,null,null,null,null,null,null,null,"May","N/A","N/A","N/A","N/A"]
[null,null,null,null,null,null,null,null,null,null,"Jun","N/A","N/A","N/A","N/A"]
[null,null,null,null,null,null,null,null,null,null,"Jul","N/A","N/A","N/A","N/A"]
[null,null,null,null,null,null,null,null,null,null,"Aug","N/A","N/A","N/A","N/A"]
[null,null,null,null,null,null,null,null,null,null,"Sep","N/A","N/A","N/A","N/A"]
[null,null,null,null,null,null,null,null,null,null,"Oct","N/A","N/A","N/A","N/A"]
[null,null,null,null,null,null,null,null,null,null,"Nov","N/A","N/A","N/A","N/A"]
[null,null,null,null,null,null,null,null,null,null,"Dec","N/A","N/A","N/A","N/A"]
[null,null,null,null,null,null,null,null,null,null,"Annual",{"$f":"AVERAGE(L67:L78)","v":{"$error":"#DIV/0!"}},{"$f":"MAX(M67:M78)","v":0},{"$f":"AVERAGE(N67:N78)","v":{"$error":"#DIV/0!"}},{"$f":"MAX(O67:O78)","v":0}]

{"sheet":"TOC","index":18,"n_rows":79,"n_cols":17,"rows_kept":79,"cut":false,"hidden":false,"merged":[[3,16,7,18],[9,16,11,18],[12,16,15,18],[66,9,78,9],[4,1,4,3],[4,4,4,6],[4,9,4,14],[6,9,18,9],[21,9,33,9],[36,9,48,9],[47,0,47,6],[48,0,51,6],[51,9,63,9]]}
[{"$f":"+'Cover Page'!$B$29","v":"Annual Performance Report 2020"},null,null,null,{"$f":"+'Cover Page'!$B$33","v":"Peterborough Energy Recovery Facility"}]
[]
["Monitoring of Total organic carbon emissions",null,null,"Whole Installation",null,null,"See  Notes in Cell Q3",null,null,{"$f":"+A3","v":"Monitoring of Total organic carbon emissions"},null,null,null,"Per Combustion Line",null,null,"Notes:"]
[null,null,null,null,null,null,null,null,null,null,null,null,null,null,null,null,"User to add logic to complete Whole installation, Table A5:G18. From the data in Per Combustion Line, Table J6:O79, subject to No. of lines installed"]
["mg/Nm3","1/2 Hourly Reference Periods",null,null,"Daily Reference Periods"]
[{"$f":"+'Cover Page'!C39","v":2020},"1/2 hourly TOC ELV","Monthly 1/2 hourly mean","Highest 1/2 hourly maximum","Daily TOC ELV","Monthly daily mean","Highest daily maximum",null,null,{"$f":"+A6","v":2020},"mg/Nm3","Monthly 1/2 hourly mean","Monthly 1/2 hourly maximum","Monthly daily mean","Monthly daily maximum"]
["Jan",20,{"$f":"L7","v":0},{"$f":"M7","v":0.2},10,{"$f":"N7","v":0},{"$f":"O7","v":0},null,null,"A1","Jan",0,0.2,0,0]
["Feb",20,{"$f":"L8","v":0.02},{"$f":"M8","v":2.4},10,{"$f":"N8","v":0.02},{"$f":"O8","v":0.3},null,null,null,"Feb",0.02,2.4,0.02,0.3]
["Mar",20,0.04,55.7,10,0.04,1.3,null,null,null,"Mar",0.04,55.7,0.04,1.3,null,"Whole Installation table A5:G18:"]
["Apr",20,0.01,6.6,10,0.01,0.1,null,null,null,"Apr",0.01,6.6,0.01,0.1,null,"Mean: for 1/2 hourly and daily periods calculate mean of values across all operational combustion lines for the month"]
["May",20,6.0000000000000001E-3,0.7,10,6.0000000000000001E-3,0.1,null,null,null,"May",6.0000000000000001E-3,0.7,6.0000000000000001E-3,0.1]
["Jun",20,7.0000000000000007E-2,21.9,10,7.0000000000000007E-2,0.5,null,null,null,"Jun",7.0000000000000007E-2,21.9,7.0000000000000007E-2,0.5]
["Jul",20,0.1,19.600000000000001,10,5.2999999999999999E-2,1.2,null,null,null,"Jul",0.1,19.600000000000001,5.2999999999999999E-2,1.2,null,"Maximum: for 1/2 hourly and daily periods use the highest value across all operational combustion lines for the month"]
["Aug",20,1.2999999999999999E-2,10.199999999999999,10,1.2999999999999999E-2,0.2,null,null,null,"Aug",1.2999999999999999E-2,10.199999999999999,1.2999999999999999E-2,0.2]
["Sep",20,2.3E-2,2.4,10,2.3E-2,0.4,null,null,null,"Sep",2.3E-2,2.4,2.3E-2,0.4]
["Oct",20,0,0.3,10,0,0,null,null,null,"Oct",0,0.3,0,0]
["Nov",20,7.0000000000000001E-3,1,10,7.0000000000000001E-3,0.2,null,null,null,"Nov",7.0000000000000001E-3,1,7.0000000000000001E-3,0.2]
["Dec",20,0.01,3.5,10,0.01,0.2,null,null,null,"Dec",0.01,3.5,0.01,0.2]
[null,null,null,null,null,null,null,null,null,null,"Annual",{"$f":"AVERAGE(L7:L18)","v":2.491666666666667E-2},{"$f":"MAX(M7:M18)","v":55.7},{"$f":"AVERAGE(N7:N18)","v":2.1000000000000001E-2},{"$f":"MAX(O7:O18)","v":1.3}]
[]
[null,null,null,null,null,null,null,null,null,{"$f":"+A6","v":2020},"mg/Nm3","Monthly 1/2 hourly mean","Monthly 1/2 hourly maximum","Monthly daily mean","Monthly daily maximum"]
[null,null,null,null,null,null,null,null,null,"A2","Jan","N/A","N/A","N/A","N/A"]
[null,null,null,null,null,null,null,null,null,null,"Feb","N/A","N/A","N/A","N/A"]
[null,null,null,null,null,null,null,null,null,null,"Mar","N/A","N/A","N/A","N/A"]
[null,null,null,null,null,null,null,null,null,null,"Apr","N/A","N/A","N/A","N/A"]
[null,null,null,null,null,null,null,null,null,null,"May","N/A","N/A","N/A","N/A"]
[null,null,null,null,null,null,null,null,null,null,"Jun","N/A","N/A","N/A","N/A"]
[null,null,null,null,null,null,null,null,null,null,"Jul","N/A","N/A","N/A","N/A"]
[null,null,null,null,null,null,null,null,null,null,"Aug","N/A","N/A","N/A","N/A"]
[null,null,null,null,null,null,null,null,null,null,"Sep","N/A","N/A","N/A","N/A"]
[null,null,null,null,null,null,null,null,null,null,"Oct","N/A","N/A","N/A","N/A"]
[null,null,null,null,null,null,null,null,null,null,"Nov","N/A","N/A","N/A","N/A"]
[null,null,null,null,null,null,null,null,null,null,"Dec","N/A","N/A","N/A","N/A"]
[null,null,null,null,null,null,null,null,null,null,"Annual",{"$f":"AVERAGE(L22:L33)","v":{"$error":"#DIV/0!"}},{"$f":"MAX(M22:M33)","v":0},{"$f":"AVERAGE(N22:N33)","v":{"$error":"#DIV/0!"}},{"$f":"MAX(O22:O33)","v":0}]
[]
[null,null,null,null,null,null,null,null,null,{"$f":"+A6","v":2020},"mg/Nm3","Monthly 1/2 hourly mean","Monthly 1/2 hourly maximum","Monthly daily mean","Monthly daily maximum"]
[null,null,null,null,null,null,null,null,null,"A3","Jan","N/A","N/A","N/A","N/A"]
[null,null,null,null,null,null,null,null,null,null,"Feb","N/A","N/A","N/A","N/A"]
[null,null,null,null,null,null,null,null,null,null,"Mar","N/A","N/A","N/A","N/A"]
[null,null,null,null,null,null,null,null,null,null,"Apr","N/A","N/A","N/A","N/A"]
[null,null,null,null,null,null,null,null,null,null,"May","N/A","N/A","N/A","N/A"]
[null,null,null,null,null,null,null,null,null,null,"Jun","N/A","N/A","N/A","N/A"]
[null,null,"01733 465284",null,null,null,null,null,null,null,"Jul","N/A","N/A","N/A","N/A"]
[null,null,null,null,null,null,null,null,null,null,"Aug","N/A","N/A","N/A","N/A"]
[null,null,"kgoldacre@viridor.co.uk ",null,null,null,null,null,null,null,"Sep","N/A","N/A","N/A","N/A"]
[null,null,null,null,null,null,null,null,null,null,"Oct","N/A","N/A","N/A","N/A"]
[null,null,null,null,null,null,null,null,null,null,"Nov","N/A","N/A","N/A","N/A"]
["Comments :",null,null,null,null,null,null,null,null,null,"Dec","N/A","N/A","N/A","N/A"]
["31st March 2020 - TOC - one half hour 55.7mg/Nm3 - Schedule 5 duly submitted.\n3rd June 2020 - TOC - one half hour 21.9mg/Nm3 - Schedule 5 duly submitted.",null,null,null,null,null,null,null,null,null,"Annual",{"$f":"AVERAGE(L37:L48)","v":{"$error":"#DIV/0!"}},{"$f":"MAX(M37:M48)","v":0},{"$f":"AVERAGE(N37:N48)","v":{"$error":"#DIV/0!"}},{"$f":"MAX(O37:O48)","v":0}]
[]
[null,null,null,null,null,null,null,null,null,{"$f":"+A6","v":2020},"mg/Nm3","Monthly 1/2 hourly mean","Monthly 1/2 hourly maximum","Monthly daily mean","Monthly daily maximum"]
[null,null,null,null,null,null,null,null,null,"A4","Jan","N/A","N/A","N/A","N/A"]
[null,null,null,null,null,null,null,null,null,null,"Feb","N/A","N/A","N/A","N/A"]
[null,null,null,null,null,null,null,null,null,null,"Mar","N/A","N/A","N/A","N/A"]
[null,null,null,null,null,null,null,null,null,null,"Apr","N/A","N/A","N/A","N/A"]
[null,null,null,null,null,null,null,null,null,null,"May","N/A","N/A","N/A","N/A"]
[null,null,null,null,null,null,null,null,null,null,"Jun","N/A","N/A","N/A","N/A"]
[null,null,null,null,null,null,null,null,null,null,"Jul","N/A","N/A","N/A","N/A"]
[null,null,null,null,null,null,null,null,null,null,"Aug","N/A","N/A","N/A","N/A"]
[null,null,null,null,null,null,null,null,null,null,"Sep","N/A","N/A","N/A","N/A"]
[null,null,null,null,null,null,null,null,null,null,"Oct","N/A","N/A","N/A","N/A"]
[null,null,null,null,null,null,null,null,null,null,"Nov","N/A","N/A","N/A","N/A"]
[null,null,null,null,null,null,null,null,null,null,"Dec","N/A","N/A","N/A","N/A"]
[null,null,null,null,null,null,null,null,null,null,"Annual",{"$f":"AVERAGE(L52:L63)","v":{"$error":"#DIV/0!"}},{"$f":"MAX(M52:M63)","v":0},{"$f":"AVERAGE(N52:N63)","v":{"$error":"#DIV/0!"}},{"$f":"MAX(O52:O63)","v":0}]
[]
[null,null,null,null,null,null,null,null,null,{"$f":"+A6","v":2020},"mg/Nm3","Monthly 1/2 hourly mean","Monthly 1/2 hourly maximum","Monthly daily mean","Monthly daily maximum"]
[null,null,null,null,null,null,null,null,null,"A5","Jan","N/A","N/A","N/A","N/A"]
[null,null,null,null,null,null,null,null,null,null,"Feb","N/A","N/A","N/A","N/A"]
[null,null,null,null,null,null,null,null,null,null,"Mar","N/A","N/A","N/A","N/A"]
[null,null,null,null,null,null,null,null,null,null,"Apr","N/A","N/A","N/A","N/A"]
[null,null,null,null,null,null,null,null,null,null,"May","N/A","N/A","N/A","N/A"]
[null,null,null,null,null,null,null,null,null,null,"Jun","N/A","N/A","N/A","N/A"]
[null,null,null,null,null,null,null,null,null,null,"Jul","N/A","N/A","N/A","N/A"]
[null,null,null,null,null,null,null,null,null,null,"Aug","N/A","N/A","N/A","N/A"]
[null,null,null,null,null,null,null,null,null,null,"Sep","N/A","N/A","N/A","N/A"]
[null,null,null,null,null,null,null,null,null,null,"Oct","N/A","N/A","N/A","N/A"]
[null,null,null,null,null,null,null,null,null,null,"Nov","N/A","N/A","N/A","N/A"]
[null,null,null,null,null,null,null,null,null,null,"Dec","N/A","N/A","N/A","N/A"]
[null,null,null,null,null,null,null,null,null,null,"Annual",{"$f":"AVERAGE(L67:L78)","v":{"$error":"#DIV/0!"}},{"$f":"MAX(M67:M78)","v":0},{"$f":"AVERAGE(N67:N78)","v":{"$error":"#DIV/0!"}},{"$f":"MAX(O67:O78)","v":0}]

{"sheet":"Particulates","index":19,"n_rows":79,"n_cols":17,"rows_kept":79,"cut":false,"hidden":false,"merged":[[3,16,7,18],[9,16,11,18],[12,16,15,18],[66,9,78,9],[4,1,4,3],[4,4,4,6],[4,9,4,14],[6,9,18,9],[21,9,33,9],[36,9,48,9],[47,0,47,6],[48,0,51,6],[51,9,63,9]]}
[{"$f":"+'Cover Page'!$B$29","v":"Annual Performance Report 2020"},null,null,null,{"$f":"+'Cover Page'!$B$33","v":"Peterborough Energy Recovery Facility"}]
[]
["Monitoring of Particulate matter emissions",null,null,"Whole Installation",null,null,"See  Notes in Cell Q3",null,null,{"$f":"+A3","v":"Monitoring of Particulate matter emissions"},null,null,null,"Per Combustion Line",null,null,"Notes:"]
[null,null,null,null,null,null,null,null,null,null,null,null,null,null,null,null,"User to add logic to complete Whole installation, Table A5:G18. From the data in Per Combustion Line, Table J6:O79, subject to No. of lines installed"]
["mg/Nm3","1/2 Hourly Reference Periods",null,null,"Daily Reference Periods"]
[{"$f":"+'Cover Page'!C39","v":2020},"1/2 hourly PM ELV","Monthly 1/2 hourly mean","Highest 1/2 hourly maximum","Daily PM ELV","Monthly daily mean","Highest daily maximum",null,null,{"$f":"+A6","v":2020},"mg/Nm3","Monthly 1/2 hourly mean","Monthly 1/2 hourly maximum","Monthly daily mean","Monthly daily maximum"]
["Jan",30,{"$f":"L7","v":0.2},{"$f":"M7","v":2.2999999999999998},10,{"$f":"N7","v":0.21},{"$f":"O7","v":1},null,null,"A1","Jan",0.2,2.2999999999999998,0.21,1]
["Feb",30,{"$f":"L8","v":0.5},{"$f":"M8","v":5.0999999999999996},10,{"$f":"N8","v":0.51},{"$f":"O8","v":1.7},null,null,null,"Feb",0.5,5.0999999999999996,0.51,1.7]
["Mar",30,1.3,6.4,10,1.33,2.6,null,null,null,"Mar",1.3,6.4,1.33,2.6,null,"Whole Installation table A5:G18:"]
["Apr",30,0.5,151.9,10,0.49,3.7,null,null,null,"Apr",0.5,151.9,0.49,3.7,null,"Mean: for 1/2 hourly and daily periods calculate mean of values across all operational combustion lines for the month"]
["May",30,0.2,10.6,10,0.14000000000000001,0.4,null,null,null,"May",0.2,10.6,0.14000000000000001,0.4]
["Jun",30,0.1,1.2,10,0.1,0.5,null,null,null,"Jun",0.1,1.2,0.1,0.5]
["Jul",30,0.2,1.6,10,0.2,0.6,null,null,null,"Jul",0.2,1.6,0.2,0.6,null,"Maximum: for 1/2 hourly and daily periods use the highest value across all operational combustion lines for the month"]
["Aug",30,0.4,2.2000000000000002,10,0.37,0.8,null,null,null,"Aug",0.4,2.2000000000000002,0.37,0.8]
["Sep",30,3.0000000000000001E-3,0.9,10,3.0000000000000001E-3,0.1,null,null,null,"Sep",3.0000000000000001E-3,0.9,3.0000000000000001E-3,0.1]
["Oct",30,0,0.1,10,0,0,null,null,null,"Oct",0,0.1,0,0]
["Nov",30,0,0.1,10,0,0,null,null,null,"Nov",0,0.1,0,0]
["Dec",30,0.1,2.1,10,6.6000000000000003E-2,0.4,null,null,null,"Dec",0.1,2.1,6.6000000000000003E-2,0.4]
[null,null,null,null,null,null,null,null,null,null,"Annual",{"$f":"AVERAGE(L7:L18)","v":0.29191666666666671},{"$f":"MAX(M7:M18)","v":151.9},{"$f":"AVERAGE(N7:N18)","v":0.28491666666666671},{"$f":"MAX(O7:O18)","v":3.7}]
[]
[null,null,null,null,null,null,null,null,null,{"$f":"+A6","v":2020},"mg/Nm3","Monthly 1/2 hourly mean","Monthly 1/2 hourly maximum","Monthly daily mean","Monthly daily maximum"]
[null,null,null,null,null,null,null,null,null,"A2","Jan","N/A","N/A","N/A","N/A"]
[null,null,null,null,null,null,null,null,null,null,"Feb","N/A","N/A","N/A","N/A"]
[null,null,null,null,null,null,null,null,null,null,"Mar","N/A","N/A","N/A","N/A"]
[null,null,null,null,null,null,null,null,null,null,"Apr","N/A","N/A","N/A","N/A"]
[null,null,null,null,null,null,null,null,null,null,"May","N/A","N/A","N/A","N/A"]
[null,null,null,null,null,null,null,null,null,null,"Jun","N/A","N/A","N/A","N/A"]
[null,null,null,null,null,null,null,null,null,null,"Jul","N/A","N/A","N/A","N/A"]
[null,null,null,null,null,null,null,null,null,null,"Aug","N/A","N/A","N/A","N/A"]
[null,null,null,null,null,null,null,null,null,null,"Sep","N/A","N/A","N/A","N/A"]
[null,null,null,null,null,null,null,null,null,null,"Oct","N/A","N/A","N/A","N/A"]
[null,null,null,null,null,null,null,null,null,null,"Nov","N/A","N/A","N/A","N/A"]
[null,null,null,null,null,null,null,null,null,null,"Dec","N/A","N/A","N/A","N/A"]
[null,null,null,null,null,null,null,null,null,null,"Annual",{"$f":"AVERAGE(L22:L33)","v":{"$error":"#DIV/0!"}},{"$f":"MAX(M22:M33)","v":0},{"$f":"AVERAGE(N22:N33)","v":{"$error":"#DIV/0!"}},{"$f":"MAX(O22:O33)","v":0}]
[]
[null,null,null,null,null,null,null,null,null,{"$f":"+A6","v":2020},"mg/Nm3","Monthly 1/2 hourly mean","Monthly 1/2 hourly maximum","Monthly daily mean","Monthly daily maximum"]
[null,null,null,null,null,null,null,null,null,"A3","Jan","N/A","N/A","N/A","N/A"]
[null,null,null,null,null,null,null,null,null,null,"Feb","N/A","N/A","N/A","N/A"]
[null,null,null,null,null,null,null,null,null,null,"Mar","N/A","N/A","N/A","N/A"]
[null,null,null,null,null,null,null,null,null,null,"Apr","N/A","N/A","N/A","N/A"]
[null,null,null,null,null,null,null,null,null,null,"May","N/A","N/A","N/A","N/A"]
[null,null,null,null,null,null,null,null,null,null,"Jun","N/A","N/A","N/A","N/A"]
[null,null,"01733 465284",null,null,null,null,null,null,null,"Jul","N/A","N/A","N/A","N/A"]
[null,null,null,null,null,null,null,null,null,null,"Aug","N/A","N/A","N/A","N/A"]
[null,null,"kgoldacre@viridor.co.uk ",null,null,null,null,null,null,null,"Sep","N/A","N/A","N/A","N/A"]
[null,null,null,null,null,null,null,null,null,null,"Oct","N/A","N/A","N/A","N/A"]
[null,null,null,null,null,null,null,null,null,null,"Nov","N/A","N/A","N/A","N/A"]
["Comments :",null,null,null,null,null,null,null,null,null,"Dec","N/A","N/A","N/A","N/A"]
["Note 13th April half hour reading of 151.9 was an instrument error - reported - abnormal operations. The other in line instrument confirmed the actual reading from the combustion process as 0.1mg/Nm3.",null,null,null,null,null,null,null,null,null,"Annual",{"$f":"AVERAGE(L37:L48)","v":{"$error":"#DIV/0!"}},{"$f":"MAX(M37:M48)","v":0},{"$f":"AVERAGE(N37:N48)","v":{"$error":"#DIV/0!"}},{"$f":"MAX(O37:O48)","v":0}]
[]
[null,null,null,null,null,null,null,null,null,{"$f":"+A6","v":2020},"mg/Nm3","Monthly 1/2 hourly mean","Monthly 1/2 hourly maximum","Monthly daily mean","Monthly daily maximum"]
[null,null,null,null,null,null,null,null,null,"A4","Jan","N/A","N/A","N/A","N/A"]
[null,null,null,null,null,null,null,null,null,null,"Feb","N/A","N/A","N/A","N/A"]
[null,null,null,null,null,null,null,null,null,null,"Mar","N/A","N/A","N/A","N/A"]
[null,null,null,null,null,null,null,null,null,null,"Apr","N/A","N/A","N/A","N/A"]
[null,null,null,null,null,null,null,null,null,null,"May","N/A","N/A","N/A","N/A"]
[null,null,null,null,null,null,null,null,null,null,"Jun","N/A","N/A","N/A","N/A"]
[null,null,null,null,null,null,null,null,null,null,"Jul","N/A","N/A","N/A","N/A"]
[null,null,null,null,null,null,null,null,null,null,"Aug","N/A","N/A","N/A","N/A"]
[null,null,null,null,null,null,null,null,null,null,"Sep","N/A","N/A","N/A","N/A"]
[null,null,null,null,null,null,null,null,null,null,"Oct","N/A","N/A","N/A","N/A"]
[null,null,null,null,null,null,null,null,null,null,"Nov","N/A","N/A","N/A","N/A"]
[null,null,null,null,null,null,null,null,null,null,"Dec","N/A","N/A","N/A","N/A"]
[null,null,null,null,null,null,null,null,null,null,"Annual",{"$f":"AVERAGE(L52:L63)","v":{"$error":"#DIV/0!"}},{"$f":"MAX(M52:M63)","v":0},{"$f":"AVERAGE(N52:N63)","v":{"$error":"#DIV/0!"}},{"$f":"MAX(O52:O63)","v":0}]
[]
[null,null,null,null,null,null,null,null,null,{"$f":"+A6","v":2020},"mg/Nm3","Monthly 1/2 hourly mean","Monthly 1/2 hourly maximum","Monthly daily mean","Monthly daily maximum"]
[null,null,null,null,null,null,null,null,null,"A5","Jan","N/A","N/A","N/A","N/A"]
[null,null,null,null,null,null,null,null,null,null,"Feb","N/A","N/A","N/A","N/A"]
[null,null,null,null,null,null,null,null,null,null,"Mar","N/A","N/A","N/A","N/A"]
[null,null,null,null,null,null,null,null,null,null,"Apr","N/A","N/A","N/A","N/A"]
[null,null,null,null,null,null,null,null,null,null,"May","N/A","N/A","N/A","N/A"]
[null,null,null,null,null,null,null,null,null,null,"Jun","N/A","N/A","N/A","N/A"]
[null,null,null,null,null,null,null,null,null,null,"Jul","N/A","N/A","N/A","N/A"]
[null,null,null,null,null,null,null,null,null,null,"Aug","N/A","N/A","N/A","N/A"]
[null,null,null,null,null,null,null,null,null,null,"Sep","N/A","N/A","N/A","N/A"]
[null,null,null,null,null,null,null,null,null,null,"Oct","N/A","N/A","N/A","N/A"]
[null,null,null,null,null,null,null,null,null,null,"Nov","N/A","N/A","N/A","N/A"]
[null,null,null,null,null,null,null,null,null,null,"Dec","N/A","N/A","N/A","N/A"]
[null,null,null,null,null,null,null,null,null,null,"Annual",{"$f":"AVERAGE(L67:L78)","v":{"$error":"#DIV/0!"}},{"$f":"MAX(M67:M78)","v":0},{"$f":"AVERAGE(N67:N78)","v":{"$error":"#DIV/0!"}},{"$f":"MAX(O67:O78)","v":0}]

{"sheet":"CO 95% 10 min","index":20,"n_rows":79,"n_cols":19,"rows_kept":79,"cut":false,"hidden":false,"merged":[[3,18,7,20],[9,18,11,20],[12,18,15,20],[66,10,78,10],[4,1,4,4],[4,5,4,7],[4,10,4,16],[6,10,18,10],[21,10,33,10],[36,10,48,10],[47,0,47,7],[48,0,51,7],[51,10,63,10]]}
[{"$f":"+'Cover Page'!$B$29","v":"Annual Performance Report 2020"},null,null,null,{"$f":"+'Cover Page'!$B$33","v":"Peterborough Energy Recovery Facility"}]
[]
["Monitoring of Carbon Monoxide (10-minute avg)",null,null,null,"Whole Installation",null,null,"See  Notes in Cell S3",null,{"$f":"+A3","v":"Monitoring of Carbon Monoxide (10-minute avg)"},null,null,null,null,"Per Combustion Line",null,"Notes:",null,"Notes:"]
[null,null,null,null,null,null,null,null,null,null,null,null,null,null,null,null,null,null,"User to add logic to complete Whole installation, Table A5:H18. From the data in Per Combustion Line, Table K6:Q79, subject to No. of lines installed"]
["mg/Nm3","10-minute Reference Periods",null,null,null,"Daily Reference Periods"]
[{"$f":"+'Cover Page'!C39","v":2020},"95%ile 10-min avg CO ELV","95%ile 10-min avg maximum","Monthly CO 10-min avg mean","10-min avg maximum","Daily CO ELV","Monthly daily mean","Highest daily maximum",null,null,{"$f":"+A6","v":2020},"mg/Nm3","95%ile 10-min avg maximum","Monthly CO 10-min avg mean","10-min avg maximum","Monthly daily mean","Monthly daily maximum"]
["Jan",150,{"$f":"M7","v":0.7},{"$f":"N7","v":0.1},{"$f":"O7","v":9.9},50,{"$f":"P7","v":0.14000000000000001},{"$f":"Q7","v":0.3},null,null,"A1","Jan",0.7,0.1,9.9,0.14000000000000001,0.3]
["Feb",{"$f":"+B7","v":150},{"$f":"M8","v":13},{"$f":"N8","v":0.3},{"$f":"O8","v":114.5},{"$f":"+F7","v":50},{"$f":"P8","v":0.28000000000000003},{"$f":"Q8","v":2.4},null,null,null,"Feb",13,0.3,114.5,0.28000000000000003,2.4]
["Mar",{"$f":"+B8","v":150},0.7,0.3,237.7,{"$f":"+F8","v":50},0.3,1.9,null,null,null,"Mar",0.7,0.3,237.7,0.3,1.9,null,"Whole Installation table A5:H18:"]
["Apr",150,0.8,0.2,123.6,50,0.24,1.2,null,null,null,"Apr",0.8,0.2,123.6,0.24,1.2,null,"Mean: for 10-min and daily periods use average of all operational combustion lines."]
["May",150,0.7,0.2,8.4,50,0.18,0.3,null,null,null,"May",0.7,0.2,8.4,0.18,0.3]
["Jun",150,3.7,0.3,40.5,50,0.27,1.1000000000000001,null,null,null,"Jun",3.7,0.3,40.5,0.27,1.1000000000000001]
["Jul",150,12,0.3,19.899999999999999,50,0.28000000000000003,1.8,null,null,null,"Jul",12,0.3,19.899999999999999,0.28000000000000003,1.8,null,"Maximum: for 10-min and daily periods use the highest of all operational combustion lines in any month."]
["Aug",150,1.6,0.3,108.4,50,0.28000000000000003,1.5,null,null,null,"Aug",1.6,0.3,108.4,0.28000000000000003,1.5]
["Sep",150,8.4,0.3,96.6,50,0.3,1.5,null,null,null,"Sep",8.4,0.3,96.6,0.3,1.5]
["Oct",150,0.9,0.3,95.9,50,0.26,0.9,null,null,null,"Oct",0.9,0.3,95.9,0.26,0.9]
["Nov",150,10.7,0.3,227,50,0.28999999999999998,2,null,null,null,"Nov",10.7,0.3,227,0.28999999999999998,2]
["Dec",150,10.7,0.3,239.3,50,0.35,2.1,null,null,null,"Dec",10.7,0.3,239.3,0.35,2.1]
[null,null,null,null,null,null,null,null,null,null,null,"Annual",{"$f":"MAX(M7:M18)","v":13},{"$f":"AVERAGE(N7:N18)","v":0.26666666666666661},{"$f":"MAX(O7:O18)","v":239.3},{"$f":"AVERAGE(P7:P18)","v":0.26416666666666672},{"$f":"MAX(Q7:Q18)","v":2.4}]
[]
[null,null,null,null,null,null,null,null,null,null,{"$f":"+A6","v":2020},"mg/Nm3","95%ile 10-min avg maximum","Monthly CO 10-min avg mean","10-min avg maximum","Monthly daily mean","Monthly daily maximum"]
[null,null,null,null,null,null,null,null,null,null,"A2","Jan","N/A","N/A","N/A","N/A","N/A"]
[null,null,null,null,null,null,null,null,null,null,null,"Feb","N/A","N/A","N/A","N/A","N/A"]
[null,null,null,null,null,null,null,null,null,null,null,"Mar","N/A","N/A","N/A","N/A","N/A"]
[null,null,null,null,null,null,null,null,null,null,null,"Apr","N/A","N/A","N/A","N/A","N/A"]
[null,null,null,null,null,null,null,null,null,null,null,"May","N/A","N/A","N/A","N/A","N/A"]
[null,null,null,null,null,null,null,null,null,null,null,"Jun","N/A","N/A","N/A","N/A","N/A"]
[null,null,null,null,null,null,null,null,null,null,null,"Jul","N/A","N/A","N/A","N/A","N/A"]
[null,null,null,null,null,null,null,null,null,null,null,"Aug","N/A","N/A","N/A","N/A","N/A"]
[null,null,null,null,null,null,null,null,null,null,null,"Sep","N/A","N/A","N/A","N/A","N/A"]
[null,null,null,null,null,null,null,null,null,null,null,"Oct","N/A","N/A","N/A","N/A","N/A"]
[null,null,null,null,null,null,null,null,null,null,null,"Nov","N/A","N/A","N/A","N/A","N/A"]
[null,null,null,null,null,null,null,null,null,null,null,"Dec","N/A","N/A","N/A","N/A","N/A"]
[null,null,null,null,null,null,null,null,null,null,null,"Annual",{"$f":"AVERAGE(M22:M33)","v":{"$error":"#DIV/0!"}},null,{"$f":"MAX(O22:O33)","v":0},{"$f":"AVERAGE(P22:P33)","v":{"$error":"#DIV/0!"}},{"$f":"MAX(Q22:Q33)","v":0}]
[]
[null,null,null,null,null,null,null,null,null,null,{"$f":"+A6","v":2020},"mg/Nm3","95%ile 10-min avg maximum","Monthly CO 10-min avg mean","10-min avg maximum","Monthly daily mean","Monthly daily maximum"]
[null,null,null,null,null,null,null,null,null,null,"A3","Jan","N/A","N/A","N/A","N/A","N/A"]
[null,null,null,null,null,null,null,null,null,null,null,"Feb","N/A","N/A","N/A","N/A","N/A"]
[null,null,null,null,null,null,null,null,null,null,null,"Mar","N/A","N/A","N/A","N/A","N/A"]
[null,null,null,null,null,null,null,null,null,null,null,"Apr","N/A","N/A","N/A","N/A","N/A"]
[null,null,null,null,null,null,null,null,null,null,null,"May","N/A","N/A","N/A","N/A","N/A"]
[null,null,null,null,null,null,null,null,null,null,null,"Jun","N/A","N/A","N/A","N/A","N/A"]
[null,null,"01733 465284",null,null,null,null,null,null,null,null,"Jul","N/A","N/A","N/A","N/A","N/A"]
[null,null,null,null,null,null,null,null,null,null,null,"Aug","N/A","N/A","N/A","N/A","N/A"]
[null,null,"kgoldacre@viridor.co.uk ",null,null,null,null,null,null,null,null,"Sep","N/A","N/A","N/A","N/A","N/A"]
[null,null,null,null,null,null,null,null,null,null,null,"Oct","N/A","N/A","N/A","N/A","N/A"]
[null,null,null,null,null,null,null,null,null,null,null,"Nov","N/A","N/A","N/A","N/A","N/A"]
["Comments :",null,null,null,null,null,null,null,null,null,null,"Dec","N/A","N/A","N/A","N/A","N/A"]
["Environment Agency explanatory note: The 10-minute average ELV is based on the “95th percentile”. In this case this means that 95% of the 10 minute averages in the relevant 24-hour period (i.e. 137) must be below 150 mg/Nm3, and 5% (i.e. 7) are allowed to be any value above 150 mg/Nm3. Whilst we expect operators to minimise CO emissions at all times, it is perfectly acceptable for the value of the maximum 10-minute average to be above 150 mg/Nm3, provided the 95th percentile ELV has been met for that period. ",null,null,null,null,null,null,null,null,null,null,"Annual",{"$f":"AVERAGE(M37:M48)","v":{"$error":"#DIV/0!"}},null,{"$f":"MAX(O37:O48)","v":0},{"$f":"AVERAGE(P37:P48)","v":{"$error":"#DIV/0!"}},{"$f":"MAX(Q37:Q48)","v":0}]
[]
[null,null,null,null,null,null,null,null,null,null,{"$f":"+A6","v":2020},"mg/Nm3","95%ile 10-min avg maximum","Monthly CO 10-min avg mean","10-min avg maximum","Monthly daily mean","Monthly daily maximum"]
[null,null,null,null,null,null,null,null,null,null,"A4","Jan","N/A","N/A","N/A","N/A","N/A"]
[null,null,null,null,null,null,null,null,null,null,null,"Feb","N/A","N/A","N/A","N/A","N/A"]
[null,null,null,null,null,null,null,null,null,null,null,"Mar","N/A","N/A","N/A","N/A","N/A"]
[null,null,null,null,null,null,null,null,null,null,null,"Apr","N/A","N/A","N/A","N/A","N/A"]
[null,null,null,null,null,null,null,null,null,null,null,"May","N/A","N/A","N/A","N/A","N/A"]
[null,null,null,null,null,null,null,null,null,null,null,"Jun","N/A","N/A","N/A","N/A","N/A"]
[null,null,null,null,null,null,null,null,null,null,null,"Jul","N/A","N/A","N/A","N/A","N/A"]
[null,null,null,null,null,null,null,null,null,null,null,"Aug","N/A","N/A","N/A","N/A","N/A"]
[null,null,null,null,null,null,null,null,null,null,null,"Sep","N/A","N/A","N/A","N/A","N/A"]
[null,null,null,null,null,null,null,null,null,null,null,"Oct","N/A","N/A","N/A","N/A","N/A"]
[null,null,null,null,null,null,null,null,null,null,null,"Nov","N/A","N/A","N/A","N/A","N/A"]
[null,null,null,null,null,null,null,null,null,null,null,"Dec","N/A","N/A","N/A","N/A","N/A"]
[null,null,null,null,null,null,null,null,null,null,null,"Annual",{"$f":"AVERAGE(M52:M63)","v":{"$error":"#DIV/0!"}},null,{"$f":"MAX(O52:O63)","v":0},{"$f":"AVERAGE(P52:P63)","v":{"$error":"#DIV/0!"}},{"$f":"MAX(Q52:Q63)","v":0}]
[]
[null,null,null,null,null,null,null,null,null,null,{"$f":"+A6","v":2020},"mg/Nm3","95%ile 10-min avg maximum","Monthly CO 10-min avg mean","10-min avg maximum","Monthly daily mean","Monthly daily maximum"]
[null,null,null,null,null,null,null,null,null,null,"A5","Jan","N/A","N/A","N/A","N/A","N/A"]
[null,null,null,null,null,null,null,null,null,null,null,"Feb","N/A","N/A","N/A","N/A","N/A"]
[null,null,null,null,null,null,null,null,null,null,null,"Mar","N/A","N/A","N/A","N/A","N/A"]
[null,null,null,null,null,null,null,null,null,null,null,"Apr","N/A","N/A","N/A","N/A","N/A"]
[null,null,null,null,null,null,null,null,null,null,null,"May","N/A","N/A","N/A","N/A","N/A"]
[null,null,null,null,null,null,null,null,null,null,null,"Jun","N/A","N/A","N/A","N/A","N/A"]
[null,null,null,null,null,null,null,null,null,null,null,"Jul","N/A","N/A","N/A","N/A","N/A"]
[null,null,null,null,null,null,null,null,null,null,null,"Aug","N/A","N/A","N/A","N/A","N/A"]
[null,null,null,null,null,null,null,null,null,null,null,"Sep","N/A","N/A","N/A","N/A","N/A"]
[null,null,null,null,null,null,null,null,null,null,null,"Oct","N/A","N/A","N/A","N/A","N/A"]
[null,null,null,null,null,null,null,null,null,null,null,"Nov","N/A","N/A","N/A","N/A","N/A"]
[null,null,null,null,null,null,null,null,null,null,null,"Dec","N/A","N/A","N/A","N/A","N/A"]
[null,null,null,null,null,null,null,null,null,null,null,"Annual",{"$f":"AVERAGE(M67:M78)","v":{"$error":"#DIV/0!"}},null,{"$f":"MAX(O67:O78)","v":0},{"$f":"AVERAGE(P67:P78)","v":{"$error":"#DIV/0!"}},{"$f":"MAX(Q67:Q78)","v":0}]

{"sheet":"NH3","index":21,"n_rows":79,"n_cols":17,"rows_kept":79,"cut":false,"hidden":false,"merged":[[3,16,7,18],[9,16,11,18],[12,16,15,18],[66,9,78,9],[4,1,4,3],[4,4,4,6],[4,9,4,14],[6,9,18,9],[21,9,33,9],[36,9,48,9],[47,0,47,6],[48,0,51,6],[51,9,63,9]]}
[{"$f":"+'Cover Page'!$B$29","v":"Annual Performance Report 2020"},null,null,null,{"$f":"+'Cover Page'!$B$33","v":"Peterborough Energy Recovery Facility"}]
[]
["Monitoring of Ammnonia emissions ",null,null,"Whole Installation",null,null,"See  Notes in Cell Q3",null,null,{"$f":"+A3","v":"Monitoring of Ammnonia emissions "},null,null,null,"Per Combustion Line",null,null,"Notes:"]
[null,null,null,null,null,null,null,null,null,null,null,null,null,null,null,null,"User to add logic to complete Whole installation, Table A5:G18. From the data in Per Combustion Line, Table J6:O79, subject to No. of lines installed"]
["mg/Nm3","1/2 Hourly Reference Periods",null,null,"Daily Reference Periods"]
[{"$f":"+'Cover Page'!C39","v":2020},"1/2 hourly NH3 ELV","Monthly 1/2 hourly mean","Highest 1/2 hourly maximum","Daily NH3 ELV","Monthly daily mean","Highest daily maximum",null,null,{"$f":"+A6","v":2020},"mg/Nm3","Monthly 1/2 hourly mean","Monthly 1/2 hourly maximum","Monthly daily mean","Monthly daily maximum"]
["Jan",0,{"$f":"L7","v":0.8},{"$f":"M7","v":2.9},0,{"$f":"N7","v":0.81},{"$f":"O7","v":1.5},null,null,"A1","Jan",0.8,2.9,0.81,1.5]
["Feb",{"$f":"+B7","v":0},{"$f":"L8","v":1.4},{"$f":"M8","v":6.3},{"$f":"+E7","v":0},{"$f":"N8","v":1.32},{"$f":"O8","v":2.1},null,null,null,"Feb",1.4,6.3,1.32,2.1]
["Mar",{"$f":"+B8","v":0},0.9,5.3,{"$f":"+E8","v":0},0.93,2.2999999999999998,null,null,null,"Mar",0.9,5.3,0.93,2.2999999999999998,null,"Whole Installation table A5:G18:"]
["Apr",0,2.1,14.3,0,1.98,4.0999999999999996,null,null,null,"Apr",2.1,14.3,1.98,4.0999999999999996,null,"Mean: for 1/2 hourly and daily periods calculate mean of values across all operational combustion lines for the month"]
["May",0,2.6,12.3,0,2.65,6,null,null,null,"May",2.6,12.3,2.65,6]
["Jun",0,0.9,4.0999999999999996,0,0.86,1.4,null,null,null,"Jun",0.9,4.0999999999999996,0.86,1.4]
["Jul",0,0.8,5.3,0,0.78,1.5,null,null,null,"Jul",0.8,5.3,0.78,1.5,null,"Maximum: for 1/2 hourly and daily periods use the highest value across all operational combustion lines for the month"]
["Aug",0,0.5,1.9,0,0.46,0.8,null,null,null,"Aug",0.5,1.9,0.46,0.8]
["Sep",0,0.4,5,0,0.41,1.2,null,null,null,"Sep",0.4,5,0.41,1.2]
["Oct",0,0.5,4,0,0.47,1,null,null,null,"Oct",0.5,4,0.47,1]
["Nov",0,0.4,2.9,0,0.42,0.7,null,null,null,"Nov",0.4,2.9,0.42,0.7]
["Dec",0,{"$f":"L18","v":0.5},{"$f":"M18","v":4.7},0,0.51,1,null,null,null,"Dec",0.5,4.7,0.51,1]
[null,null,null,null,null,null,null,null,null,null,"Annual",{"$f":"AVERAGE(L7:L18)","v":0.9833333333333335},{"$f":"MAX(M7:M18)","v":14.3},{"$f":"AVERAGE(N7:N18)","v":0.96666666666666667},{"$f":"MAX(O7:O18)","v":6}]
[]
[null,null,null,null,null,null,null,null,null,{"$f":"+A6","v":2020},"mg/Nm3","Monthly 1/2 hourly mean","Monthly 1/2 hourly maximum","Monthly daily mean","Monthly daily maximum"]
[null,null,null,null,null,null,null,null,null,"A2","Jan","N/A","N/A","N/A","N/A"]
[null,null,null,null,null,null,null,null,null,null,"Feb","N/A","N/A","N/A","N/A"]
[null,null,null,null,null,null,null,null,null,null,"Mar","N/A","N/A","N/A","N/A"]
[null,null,null,null,null,null,null,null,null,null,"Apr","N/A","N/A","N/A","N/A"]
[null,null,null,null,null,null,null,null,null,null,"May","N/A","N/A","N/A","N/A"]
[null,null,null,null,null,null,null,null,null,null,"Jun","N/A","N/A","N/A","N/A"]
[null,null,null,null,null,null,null,null,null,null,"Jul","N/A","N/A","N/A","N/A"]
[null,null,null,null,null,null,null,null,null,null,"Aug","N/A","N/A","N/A","N/A"]
[null,null,null,null,null,null,null,null,null,null,"Sep","N/A","N/A","N/A","N/A"]
[null,null,null,null,null,null,null,null,null,null,"Oct","N/A","N/A","N/A","N/A"]
[null,null,null,null,null,null,null,null,null,null,"Nov","N/A","N/A","N/A","N/A"]
[null,null,null,null,null,null,null,null,null,null,"Dec","N/A","N/A","N/A","N/A"]
[null,null,null,null,null,null,null,null,null,null,"Annual",{"$f":"AVERAGE(L22:L33)","v":{"$error":"#DIV/0!"}},{"$f":"MAX(M22:M33)","v":0},{"$f":"AVERAGE(N22:N33)","v":{"$error":"#DIV/0!"}},{"$f":"MAX(O22:O33)","v":0}]
[]
[null,null,null,null,null,null,null,null,null,{"$f":"+A6","v":2020},"mg/Nm3","Monthly 1/2 hourly mean","Monthly 1/2 hourly maximum","Monthly daily mean","Monthly daily maximum"]
[null,null,null,null,null,null,null,null,null,"A3","Jan","N/A","N/A","N/A","N/A"]
[null,null,null,null,null,null,null,null,null,null,"Feb","N/A","N/A","N/A","N/A"]
[null,null,null,null,null,null,null,null,null,null,"Mar","N/A","N/A","N/A","N/A"]
[null,null,null,null,null,null,null,null,null,null,"Apr","N/A","N/A","N/A","N/A"]
[null,null,null,null,null,null,null,null,null,null,"May","N/A","N/A","N/A","N/A"]
[null,null,null,null,null,null,null,null,null,null,"Jun","N/A","N/A","N/A","N/A"]
[null,null,"01733 465284",null,null,null,null,null,null,null,"Jul","N/A","N/A","N/A","N/A"]
[null,null,null,null,null,null,null,null,null,null,"Aug","N/A","N/A","N/A","N/A"]
[null,null,"kgoldacre@viridor.co.uk ",null,null,null,null,null,null,null,"Sep","N/A","N/A","N/A","N/A"]
[null,null,null,null,null,null,null,null,null,null,"Oct","N/A","N/A","N/A","N/A"]
[null,null,null,null,null,null,null,null,null,null,"Nov","N/A","N/A","N/A","N/A"]
["Comments :",null,null,null,null,null,null,null,null,null,"Dec","N/A","N/A","N/A","N/A"]
["An indicated ELV value of zero in the table above means that no ammonia limit is set in the permit.  ",null,null,null,null,null,null,null,null,null,"Annual",{"$f":"AVERAGE(L37:L48)","v":{"$error":"#DIV/0!"}},{"$f":"MAX(M37:M48)","v":0},{"$f":"AVERAGE(N37:N48)","v":{"$error":"#DIV/0!"}},{"$f":"MAX(O37:O48)","v":0}]
[]
[null,null,null,null,null,null,null,null,null,{"$f":"+A6","v":2020},"mg/Nm3","Monthly 1/2 hourly mean","Monthly 1/2 hourly maximum","Monthly daily mean","Monthly daily maximum"]
[null,null,null,null,null,null,null,null,null,"A4","Jan","N/A","N/A","N/A","N/A"]
[null,null,null,null,null,null,null,null,null,null,"Feb","N/A","N/A","N/A","N/A"]
[null,null,null,null,null,null,null,null,null,null,"Mar","N/A","N/A","N/A","N/A"]
[null,null,null,null,null,null,null,null,null,null,"Apr","N/A","N/A","N/A","N/A"]
[null,null,null,null,null,null,null,null,null,null,"May","N/A","N/A","N/A","N/A"]
[null,null,null,null,null,null,null,null,null,null,"Jun","N/A","N/A","N/A","N/A"]
[null,null,null,null,null,null,null,null,null,null,"Jul","N/A","N/A","N/A","N/A"]
[null,null,null,null,null,null,null,null,null,null,"Aug","N/A","N/A","N/A","N/A"]
[null,null,null,null,null,null,null,null,null,null,"Sep","N/A","N/A","N/A","N/A"]
[null,null,null,null,null,null,null,null,null,null,"Oct","N/A","N/A","N/A","N/A"]
[null,null,null,null,null,null,null,null,null,null,"Nov","N/A","N/A","N/A","N/A"]
[null,null,null,null,null,null,null,null,null,null,"Dec","N/A","N/A","N/A","N/A"]
[null,null,null,null,null,null,null,null,null,null,"Annual",{"$f":"AVERAGE(L52:L63)","v":{"$error":"#DIV/0!"}},{"$f":"MAX(M52:M63)","v":0},{"$f":"AVERAGE(N52:N63)","v":{"$error":"#DIV/0!"}},{"$f":"MAX(O52:O63)","v":0}]
[]
[null,null,null,null,null,null,null,null,null,{"$f":"+A6","v":2020},"mg/Nm3","Monthly 1/2 hourly mean","Monthly 1/2 hourly maximum","Monthly daily mean","Monthly daily maximum"]
[null,null,null,null,null,null,null,null,null,"A5","Jan","N/A","N/A","N/A","N/A"]
[null,null,null,null,null,null,null,null,null,null,"Feb","N/A","N/A","N/A","N/A"]
[null,null,null,null,null,null,null,null,null,null,"Mar","N/A","N/A","N/A","N/A"]
[null,null,null,null,null,null,null,null,null,null,"Apr","N/A","N/A","N/A","N/A"]
[null,null,null,null,null,null,null,null,null,null,"May","N/A","N/A","N/A","N/A"]
[null,null,null,null,null,null,null,null,null,null,"Jun","N/A","N/A","N/A","N/A"]
[null,null,null,null,null,null,null,null,null,null,"Jul","N/A","N/A","N/A","N/A"]
[null,null,null,null,null,null,null,null,null,null,"Aug","N/A","N/A","N/A","N/A"]
[null,null,null,null,null,null,null,null,null,null,"Sep","N/A","N/A","N/A","N/A"]
[null,null,null,null,null,null,null,null,null,null,"Oct","N/A","N/A","N/A","N/A"]
[null,null,null,null,null,null,null,null,null,null,"Nov","N/A","N/A","N/A","N/A"]
[null,null,null,null,null,null,null,null,null,null,"Dec","N/A","N/A","N/A","N/A"]
[null,null,null,null,null,null,null,null,null,null,"Annual",{"$f":"AVERAGE(L67:L78)","v":{"$error":"#DIV/0!"}},{"$f":"MAX(M67:M78)","v":0},{"$f":"AVERAGE(N67:N78)","v":{"$error":"#DIV/0!"}},{"$f":"MAX(O67:O78)","v":0}]